Workbook

Sheet Dashboard
B2: Lehrlinge nach Bundesländern und Sparten, Stichtag 31. Dezember 1
B3: Quelle: Lehrlingsstatistik, Wirtschaftskammern Österreichs, Statistik
B4: Auswahl:
B5: =Auswahl_Bundesland -> ÖSTERREICH
B7: Jahr | D7: Insgesamt | E7: Gewerbe und Handwerk | F7: Industrie | G7: Handel | H7: Bank und Versicherung | I7: Transport und Verkehr | J7: Tourismus und Freizeitwirtschaft | K7: Information und Consulting | L7: Sonstige Lehrberechtigte | M7: Überbetriebliche Lehrausbildung 2
B8: =OFFSET(Daten_Auswahl!B8,Scrollbar,0) -> 2016 | D8: =OFFSET(Daten_Auswahl!L8,Scrollbar,OptionButtonMultiplier) -> 106950 | E8: =OFFSET(Daten_Auswahl!C8,Scrollbar,OptionButtonMultiplier) -> 44909 | F8: =OFFSET(Daten_Auswahl!D8,Scrollbar,OptionButtonMultiplier) -> 15079 | G8: =OFFSET(Daten_Auswahl!E8,Scrollbar,OptionButtonMultiplier) -> 15055 | H8: =OFFSET(Daten_Auswahl!F8,Scrollbar,OptionButtonMultiplier) -> 1151 | I8: =OFFSET(Daten_Auswahl!G8,Scrollbar,OptionButtonMultiplier) -> 2648 | J8: =OFFSET(Daten_Auswahl!H8,Scrollbar,OptionButtonMultiplier) -> 8788 | K8: =OFFSET(Daten_Auswahl!I8,Scrollbar,OptionButtonMultiplier) -> 2143 | L8: =OFFSET(Daten_Auswahl!J8,Scrollbar,OptionButtonMultiplier) -> 7933 | M8: =OFFSET(Daten_Auswahl!K8,Scrollbar,OptionButtonMultiplier) -> 9244
B9: =OFFSET(Daten_Auswahl!B9,Scrollbar,0) -> 2017 | D9: =OFFSET(Daten_Auswahl!L9,Scrollbar,OptionButtonMultiplier) -> 106613 | E9: =OFFSET(Daten_Auswahl!C9,Scrollbar,OptionButtonMultiplier) -> 44602 | F9: =OFFSET(Daten_Auswahl!D9,Scrollbar,OptionButtonMultiplier) -> 15159 | G9: =OFFSET(Daten_Auswahl!E9,Scrollbar,OptionButtonMultiplier) -> 14892 | H9: =OFFSET(Daten_Auswahl!F9,Scrollbar,OptionButtonMultiplier) -> 1135 | I9: =OFFSET(Daten_Auswahl!G9,Scrollbar,OptionButtonMultiplier) -> 2753 | J9: =OFFSET(Daten_Auswahl!H9,Scrollbar,OptionButtonMultiplier) -> 8905 | K9: =OFFSET(Daten_Auswahl!I9,Scrollbar,OptionButtonMultiplier) -> 2185 | L9: =OFFSET(Daten_Auswahl!J9,Scrollbar,OptionButtonMultiplier) -> 7881 | M9: =OFFSET(Daten_Auswahl!K9,Scrollbar,OptionButtonMultiplier) -> 9101
B10: =OFFSET(Daten_Auswahl!B10,Scrollbar,0) -> 2018 | D10: =OFFSET(Daten_Auswahl!L10,Scrollbar,OptionButtonMultiplier) -> 107915 | E10: =OFFSET(Daten_Auswahl!C10,Scrollbar,OptionButtonMultiplier) -> 45744 | F10: =OFFSET(Daten_Auswahl!D10,Scrollbar,OptionButtonMultiplier) -> 15754 | G10: =OFFSET(Daten_Auswahl!E10,Scrollbar,OptionButtonMultiplier) -> 14957 | H10: =OFFSET(Daten_Auswahl!F10,Scrollbar,OptionButtonMultiplier) -> 1128 | I10: =OFFSET(Daten_Auswahl!G10,Scrollbar,OptionButtonMultiplier) -> 2816 | J10: =OFFSET(Daten_Auswahl!H10,Scrollbar,OptionButtonMultiplier) -> 9048 | K10: =OFFSET(Daten_Auswahl!I10,Scrollbar,OptionButtonMultiplier) -> 2335 | L10: =OFFSET(Daten_Auswahl!J10,Scrollbar,OptionButtonMultiplier) -> 7831 | M10: =OFFSET(Daten_Auswahl!K10,Scrollbar,OptionButtonMultiplier) -> 8302
B11: =OFFSET(Daten_Auswahl!B11,Scrollbar,0) -> 2019 | D11: =OFFSET(Daten_Auswahl!L11,Scrollbar,OptionButtonMultiplier) -> 109111 | E11: =OFFSET(Daten_Auswahl!C11,Scrollbar,OptionButtonMultiplier) -> 46390 | F11: =OFFSET(Daten_Auswahl!D11,Scrollbar,OptionButtonMultiplier) -> 16446 | G11: =OFFSET(Daten_Auswahl!E11,Scrollbar,OptionButtonMultiplier) -> 15283 | H11: =OFFSET(Daten_Auswahl!F11,Scrollbar,OptionButtonMultiplier) -> 1222 | I11: =OFFSET(Daten_Auswahl!G11,Scrollbar,OptionButtonMultiplier) -> 2869 | J11: =OFFSET(Daten_Auswahl!H11,Scrollbar,OptionButtonMultiplier) -> 8910 | K11: =OFFSET(Daten_Auswahl!I11,Scrollbar,OptionButtonMultiplier) -> 2509 | L11: =OFFSET(Daten_Auswahl!J11,Scrollbar,OptionButtonMultiplier) -> 8060 | M11: =OFFSET(Daten_Auswahl!K11,Scrollbar,OptionButtonMultiplier) -> 7422
B12: =OFFSET(Daten_Auswahl!B12,Scrollbar,0) -> 2020 | D12: =OFFSET(Daten_Auswahl!L12,Scrollbar,OptionButtonMultiplier) -> 108416 | E12: =OFFSET(Daten_Auswahl!C12,Scrollbar,OptionButtonMultiplier) -> 46659 | F12: =OFFSET(Daten_Auswahl!D12,Scrollbar,OptionButtonMultiplier) -> 16389 | G12: =OFFSET(Daten_Auswahl!E12,Scrollbar,OptionButtonMultiplier) -> 15105 | H12: =OFFSET(Daten_Auswahl!F12,Scrollbar,OptionButtonMultiplier) -> 1268 | I12: =OFFSET(Daten_Auswahl!G12,Scrollbar,OptionButtonMultiplier) -> 2786 | J12: =OFFSET(Daten_Auswahl!H12,Scrollbar,OptionButtonMultiplier) -> 7876 | K12: =OFFSET(Daten_Auswahl!I12,Scrollbar,OptionButtonMultiplier) -> 2519 | L12: =OFFSET(Daten_Auswahl!J12,Scrollbar,OptionButtonMultiplier) -> 8574 | M12: =OFFSET(Daten_Auswahl!K12,Scrollbar,OptionButtonMultiplier) -> 7240
B13: =OFFSET(Daten_Auswahl!B13,Scrollbar,0) -> 2021 | D13: =OFFSET(Daten_Auswahl!L13,Scrollbar,OptionButtonMultiplier) -> 107593 | E13: =OFFSET(Daten_Auswahl!C13,Scrollbar,OptionButtonMultiplier) -> 46874 | F13: =OFFSET(Daten_Auswahl!D13,Scrollbar,OptionButtonMultiplier) -> 16239 | G13: =OFFSET(Daten_Auswahl!E13,Scrollbar,OptionButtonMultiplier) -> 15149 | H13: =OFFSET(Daten_Auswahl!F13,Scrollbar,OptionButtonMultiplier) -> 1188 | I13: =OFFSET(Daten_Auswahl!G13,Scrollbar,OptionButtonMultiplier) -> 2784 | J13: =OFFSET(Daten_Auswahl!H13,Scrollbar,OptionButtonMultiplier) -> 6914 | K13: =OFFSET(Daten_Auswahl!I13,Scrollbar,OptionButtonMultiplier) -> 2518 | L13: =OFFSET(Daten_Auswahl!J13,Scrollbar,OptionButtonMultiplier) -> 9047 | M13: =OFFSET(Daten_Auswahl!K13,Scrollbar,OptionButtonMultiplier) -> 6880
B14: =OFFSET(Daten_Auswahl!B14,Scrollbar,0) -> 2022 | D14: =OFFSET(Daten_Auswahl!L14,Scrollbar,OptionButtonMultiplier) -> 108085 | E14: =OFFSET(Daten_Auswahl!C14,Scrollbar,OptionButtonMultiplier) -> 46913 | F14: =OFFSET(Daten_Auswahl!D14,Scrollbar,OptionButtonMultiplier) -> 16428 | G14: =OFFSET(Daten_Auswahl!E14,Scrollbar,OptionButtonMultiplier) -> 15193 | H14: =OFFSET(Daten_Auswahl!F14,Scrollbar,OptionButtonMultiplier) -> 1218 | I14: =OFFSET(Daten_Auswahl!G14,Scrollbar,OptionButtonMultiplier) -> 2856 | J14: =OFFSET(Daten_Auswahl!H14,Scrollbar,OptionButtonMultiplier) -> 6949 | K14: =OFFSET(Daten_Auswahl!I14,Scrollbar,OptionButtonMultiplier) -> 2764 | L14: =OFFSET(Daten_Auswahl!J14,Scrollbar,OptionButtonMultiplier) -> 9536 | M14: =OFFSET(Daten_Auswahl!K14,Scrollbar,OptionButtonMultiplier) -> 6228
B15: =OFFSET(Daten_Auswahl!B15,Scrollbar,0) -> 2023 | D15: =OFFSET(Daten_Auswahl!L15,Scrollbar,OptionButtonMultiplier) -> 108266 | E15: =OFFSET(Daten_Auswahl!C15,Scrollbar,OptionButtonMultiplier) -> 46666 | F15: =OFFSET(Daten_Auswahl!D15,Scrollbar,OptionButtonMultiplier) -> 16804 | G15: =OFFSET(Daten_Auswahl!E15,Scrollbar,OptionButtonMultiplier) -> 14763 | H15: =OFFSET(Daten_Auswahl!F15,Scrollbar,OptionButtonMultiplier) -> 1364 | I15: =OFFSET(Daten_Auswahl!G15,Scrollbar,OptionButtonMultiplier) -> 2981 | J15: =OFFSET(Daten_Auswahl!H15,Scrollbar,OptionButtonMultiplier) -> 7195 | K15: =OFFSET(Daten_Auswahl!I15,Scrollbar,OptionButtonMultiplier) -> 2802 | L15: =OFFSET(Daten_Auswahl!J15,Scrollbar,OptionButtonMultiplier) -> 9822 | M15: =OFFSET(Daten_Auswahl!K15,Scrollbar,OptionButtonMultiplier) -> 5869
B17: Insgesamt
B18: Gewerbe und Handwerk
B19: Industrie
B20: Handel
B21: Bank und Versicherung
B22: Transport und Verkehr
B23: Tourismus und Freizeitwirtschaft
B24: Information und Consulting
B25: Sonstige Lehrberechtigte
B26: Überbetriebliche Lehrausbildung 2
B28: 1 Abweichungen zu veröffentlichten Statistiken der Bundesländer sind in Einzelfällen aufgrund unterschiedlicher Vorgehensweisen oder Kategorisierungen möglich.
B29: 2 Vor 2010 nur teilweise Erfassung der Überbetrieblichen Lehrausbildung.
B30: 3 Bevölkerungsstatistik, STATISTIK AUSTRIA (2023: Prognose)

Sheet Daten (hidden)
A1: BDL(alpha)_Jahr | B1: Zeilenindex | C1: BDL(alpha) | D1: Jahr | E1: 1 | F1: 2 | G1: 3 | H1: 4 | I1: 5 | J1: 6 | K1: 7 | L1: 8 | M1: 9 | N1: 10 | P1: aus Tabellle Kreuztabelle Lehrlinge
A2: =C2&D2 -> 11961 | B2: 2 | C2: 1 | D2: 1961 | E2: 2516 | F2: 79 | G2: 487 | J2: 83 | N2: 3165
A3: 11962 | B3: 3 | C3: 1 | D3: 1962 | E3: 2758 | F3: 78 | G3: 608 | J3: 106 | N3: 3550
A4: 11963 | B4: 4 | C4: 1 | D4: 1963 | E4: 3109 | F4: 102 | G4: 682 | J4: 147 | N4: 4040
A5: 11964 | B5: 5 | C5: 1 | D5: 1964 | E5: 3369 | F5: 137 | G5: 712 | J5: 175 | N5: 4393
A6: 11965 | B6: 6 | C6: 1 | D6: 1965 | E6: 3419 | F6: 139 | G6: 738 | J6: 177 | N6: 4473
A7: 11966 | B7: 7 | C7: 1 | D7: 1966 | E7: 2663 | F7: 105 | G7: 537 | J7: 174 | N7: 3479
A8: 11967 | B8: 8 | C8: 1 | D8: 1967 | E8: 2587 | F8: 87 | G8: 510 | J8: 140 | N8: 3324
A9: 11968 | B9: 9 | C9: 1 | D9: 1968 | E9: 2577 | F9: 83 | G9: 534 | J9: 182 | N9: 3376
A10: 11969 | B10: 10 | C10: 1 | D10: 1969 | E10: 2923 | F10: 101 | G10: 663 | I10: 1 | J10: 174 | N10: 3862
A11: 11970 | B11: 11 | C11: 1 | D11: 1970 | E11: 3157 | F11: 110 | G11: 656 | I11: 1 | J11: 214 | L11: 1 | N11: 4139
A12: 11971 | B12: 12 | C12: 1 | D12: 1971 | E12: 3170 | F12: 120 | G12: 632 | H12: 0 | I12: 2 | J12: 257 | L12: 1 | N12: 4182
A13: 11972 | B13: 13 | C13: 1 | D13: 1972 | E13: 3211 | F13: 137 | G13: 686 | I13: 3 | J13: 286 | N13: 4323
A14: 11973 | B14: 14 | C14: 1 | D14: 1973 | E14: 3289 | F14: 177 | G14: 711 | H14: 1 | I14: 1 | J14: 327 | N14: 4506
A15: 11974 | B15: 15 | C15: 1 | D15: 1974 | E15: 3322 | F15: 206 | G15: 737 | H15: 3 | I15: 1 | J15: 336 | N15: 4605
A16: 11975 | B16: 16 | C16: 1 | D16: 1975 | E16: 3391 | F16: 224 | G16: 752 | H16: 5 | J16: 372 | N16: 4744
A17: 11976 | B17: 17 | C17: 1 | D17: 1976 | E17: 3406 | F17: 231 | G17: 772 | H17: 6 | I17: 1 | J17: 413 | N17: 4829
A18: 11977 | B18: 18 | C18: 1 | D18: 1977 | E18: 3475 | F18: 290 | G18: 842 | H18: 6 | I18: 1 | J18: 440 | N18: 5054
A19: 11978 | B19: 19 | C19: 1 | D19: 1978 | E19: 3529 | F19: 319 | G19: 841 | H19: 5 | I19: 2 | J19: 457 | L19: 7 | N19: 5160
A20: 11979 | B20: 20 | C20: 1 | D20: 1979 | E20: 3533 | F20: 332 | G20: 869 | H20: 2 | I20: 2 | J20: 495 | L20: 7 | N20: 5240
A21: 11980 | B21: 21 | C21: 1 | D21: 1980 | E21: 3494 | F21: 358 | G21: 859 | I21: 2 | J21: 497 | L21: 5 | N21: 5215
A22: 11981 | B22: 22 | C22: 1 | D22: 1981 | E22: 3309 | F22: 344 | G22: 822 | H22: 0 | I22: 0 | J22: 477 | L22: 5 | N22: 4957
A23: 11982 | B23: 23 | C23: 1 | D23: 1982 | E23: 3058 | F23: 308 | G23: 793 | H23: 3 | I23: 1 | J23: 518 | L23: 5 | N23: 4686
A24: 11983 | B24: 24 | C24: 1 | D24: 1983 | E24: 2906 | F24: 241 | G24: 703 | H24: 4 | I24: 2 | J24: 506 | L24: 5 | N24: 4367
A25: 11984 | B25: 25 | C25: 1 | D25: 1984 | E25: 2822 | F25: 263 | G25: 707 | H25: 4 | I25: 2 | J25: 521 | L25: 4 | N25: 4323
A26: 11985 | B26: 26 | C26: 1 | D26: 1985 | E26: 2769 | F26: 258 | G26: 680 | H26: 2 | I26: 1 | J26: 527 | L26: 5 | N26: 4242
A27: 11986 | B27: 27 | C27: 1 | D27: 1986 | E27: 2756 | F27: 263 | G27: 669 | H27: 2 | J27: 526 | L27: 3 | N27: 4219
A28: 11987 | B28: 28 | C28: 1 | D28: 1987 | E28: 2745 | F28: 263 | G28: 563 | H28: 3 | I28: 13 | J28: 525 | L28: 25 | N28: 4137
A29: 11988 | B29: 29 | C29: 1 | D29: 1988 | E29: 2695 | F29: 247 | G29: 575 | H29: 4 | I29: 12 | J29: 501 | L29: 39 | N29: 4073
A30: 11989 | B30: 30 | C30: 1 | D30: 1989 | E30: 2707 | F30: 248 | G30: 547 | H30: 3 | I30: 8 | J30: 453 | L30: 52 | N30: 4018
A31: 11990 | B31: 31 | C31: 1 | D31: 1990 | E31: 2743 | F31: 233 | G31: 551 | H31: 2 | I31: 7 | J31: 443 | L31: 65 | N31: 4044
A32: 11991 | B32: 32 | C32: 1 | D32: 1991 | E32: 2665 | F32: 225 | G32: 512 | H32: 3 | I32: 8 | J32: 376 | L32: 67 | N32: 3856
A33: 11992 | B33: 33 | C33: 1 | D33: 1992 | E33: 2535 | F33: 185 | G33: 475 | H33: 4 | I33: 10 | J33: 348 | L33: 74 | N33: 3631
A34: 11993 | B34: 34 | C34: 1 | D34: 1993 | E34: 2374 | F34: 177 | G34: 423 | H34: 5 | I34: 9 | J34: 313 | L34: 69 | N34: 3370
A35: 11994 | B35: 35 | C35: 1 | D35: 1994 | E35: 2365 | F35: 172 | G35: 404 | H35: 7 | I35: 7 | J35: 306 | L35: 73 | N35: 3334
A36: 11995 | B36: 36 | C36: 1 | D36: 1995 | E36: 2310 | F36: 158 | G36: 357 | H36: 8 | I36: 8 | J36: 289 | L36: 74 | N36: 3204
A37: 11996 | B37: 37 | C37: 1 | D37: 1996 | E37: 2254 | F37: 167 | G37: 315 | H37: 6 | I37: 8 | J37: 289 | L37: 77 | N37: 3116
A38: 11997 | B38: 38 | C38: 1 | D38: 1997 | E38: 2220 | F38: 184 | G38: 326 | H38: 3 | I38: 8 | J38: 283 | L38: 138 | N38: 3162
A39: 11998 | B39: 39 | C39: 1 | D39: 1998 | E39: 2189 | F39: 191 | G39: 326 | H39: 6 | I39: 5 | J39: 287 | L39: 46 | M39: 147 | N39: 3197
A40: 11999 | B40: 40 | C40: 1 | D40: 1999 | E40: 2164 | F40: 204 | G40: 333 | H40: 7 | I40: 4 | J40: 294 | L40: 85 | M40: 151 | N40: 3242
A41: 12000 | B41: 41 | C41: 1 | D41: 2000 | E41: 2127 | F41: 187 | G41: 321 | H41: 6 | I41: 4 | J41: 275 | L41: 86 | M41: 113 | N41: 3119
A42: 12001 | B42: 42 | C42: 1 | D42: 2001 | E42: 2074 | F42: 182 | G42: 318 | H42: 3 | I42: 4 | J42: 271 | L42: 80 | M42: 78 | N42: 3010
A43: 12002 | B43: 43 | C43: 1 | D43: 2002 | E43: 1892 | F43: 176 | G43: 313 | H43: 9 | I43: 5 | J43: 260 | K43: 40 | L43: 81 | M43: 63 | N43: 2839
A44: 12003 | B44: 44 | C44: 1 | D44: 2003 | E44: 1846 | F44: 171 | G44: 317 | H44: 9 | I44: 1 | J44: 267 | K44: 37 | L44: 79 | M44: 60 | N44: 2787
A45: 12004 | B45: 45 | C45: 1 | D45: 2004 | E45: 1852 | F45: 176 | G45: 329 | H45: 8 | I45: 3 | J45: 257 | K45: 40 | L45: 83 | M45: 62 | N45: 2810
A46: 12005 | B46: 46 | C46: 1 | D46: 2005 | E46: 1785 | F46: 184 | G46: 356 | H46: 7 | I46: 5 | J46: 284 | K46: 37 | L46: 127 | M46: 69 | N46: 2854
A47: 12006 | B47: 47 | C47: 1 | D47: 2006 | E47: 1755 | F47: 193 | G47: 375 | H47: 9 | I47: 3 | J47: 307 | K47: 35 | L47: 132 | M47: 147 | N47: 2956
A48: 12007 | B48: 48 | C48: 1 | D48: 2007 | E48: 1717 | F48: 200 | G48: 381 | H48: 8 | I48: 2 | J48: 301 | K48: 36 | L48: 134 | M48: 161 | N48: 2940
A49: 12008 | B49: 49 | C49: 1 | D49: 2008 | E49: 1692 | F49: 191 | G49: 380 | H49: 11 | I49: 2 | J49: 298 | K49: 40 | L49: 147 | M49: 160 | N49: 2921
A50: 12009 | B50: 50 | C50: 1 | D50: 2009 | E50: 1642 | F50: 189 | G50: 375 | H50: 11 | I50: 2 | J50: 299 | K50: 48 | L50: 158 | M50: 337 | N50: 3061
A51: 12010 | B51: 51 | C51: 1 | D51: 2010 | E51: 1528 | F51: 190 | G51: 368 | H51: 12 | I51: 5 | J51: 281 | K51: 42 | L51: 146 | M51: 467 | N51: 3039
A52: 12011 | B52: 52 | C52: 1 | D52: 2011 | E52: 1428 | F52: 203 | G52: 354 | H52: 19 | I52: 5 | J52: 251 | K52: 32 | L52: 125 | M52: 509 | N52: 2926
A53: 12012 | B53: 53 | C53: 1 | D53: 2012 | E53: 1319 | F53: 208 | G53: 358 | H53: 19 | I53: 3 | J53: 227 | K53: 32 | L53: 122 | M53: 510 | N53: 2798
A54: 12013 | B54: 54 | C54: 1 | D54: 2013 | E54: 1241 | F54: 219 | G54: 340 | H54: 19 | I54: 1 | J54: 198 | K54: 28 | L54: 125 | M54: 479 | N54: 2650
A55: 12014 | B55: 55 | C55: 1 | D55: 2014 | E55: 1192 | F55: 217 | G55: 349 | H55: 24 | I55: 1 | J55: 198 | K55: 26 | L55: 150 | M55: 533 | N55: 2690
A56: 12015 | B56: 56 | C56: 1 | D56: 2015 | E56: 1162 | F56: 199 | G56: 324 | H56: 24 | I56: 2 | J56: 197 | K56: 23 | L56: 191 | M56: 470 | N56: 2592
A57: 12016 | B57: 57 | C57: 1 | D57: 2016 | E57: 1128 | F57: 207 | G57: 333 | H57: 24 | I57: 2 | J57: 207 | K57: 22 | L57: 172 | M57: 497 | N57: 2592
A58: 12017 | B58: 58 | C58: 1 | D58: 2017 | E58: 1107 | F58: 215 | G58: 323 | H58: 27 | I58: 4 | J58: 195 | K58: 30 | L58: 178 | M58: 529 | N58: 2608
A59: 12018 | B59: 59 | C59: 1 | D59: 2018 | E59: 1161 | F59: 212 | G59: 318 | H59: 19 | I59: 5 | J59: 181 | K59: 22 | L59: 146 | M59: 457 | N59: 2521
A60: 12019 | B60: 60 | C60: 1 | D60: 2019 | E60: 1218 | F60: 246 | G60: 297 | H60: 30 | I60: 5 | J60: 173 | K60: 29 | L60: 162 | M60: 419 | N60: 2579
A61: 12020 | B61: 61 | C61: 1 | D61: 2020 | E61: 1194 | F61: 223 | G61: 310 | H61: 34 | I61: 6 | J61: 158 | K61: 23 | L61: 167 | M61: 452 | N61: 2567
A62: 12021 | B62: 62 | C62: 1 | D62: 2021 | E62: 1188 | F62: 237 | G62: 297 | H62: 30 | I62: 5 | J62: 140 | K62: 28 | L62: 159 | M62: 456 | N62: 2540
A63: 12022 | B63: 63 | C63: 1 | D63: 2022 | E63: 1235 | F63: 248 | G63: 307 | H63: 25 | I63: 3 | J63: 144 | K63: 24 | L63: 176 | M63: 385 | N63: 2547
A64: 12023 | B64: 64 | C64: 1 | D64: 2023 | E64: 1276 | F64: 265 | G64: 270 | H64: 26 | I64: 3 | J64: 151 | K64: 35 | L64: 179 | M64: 352 | N64: 2557
A65: =C65&D65 -> 21961 | B65: 65 | C65: 2 | D65: 1961 | E65: 8095 | F65: 940 | G65: 2654 | I65: 26 | J65: 353 | N65: 12068
A66: 21962 | B66: 66 | C66: 2 | D66: 1962 | E66: 8454 | F66: 982 | G66: 2908 | I66: 28 | J66: 419 | N66: 12791
A67: 21963 | B67: 67 | C67: 2 | D67: 1963 | E67: 8854 | F67: 1008 | G67: 3171 | I67: 26 | J67: 512 | N67: 13571
A68: 21964 | B68: 68 | C68: 2 | D68: 1964 | E68: 8996 | F68: 1018 | G68: 3191 | I68: 24 | J68: 610 | N68: 13839
A69: 21965 | B69: 69 | C69: 2 | D69: 1965 | E69: 9251 | F69: 1078 | G69: 3218 | I69: 28 | J69: 685 | N69: 14260
A70: 21966 | B70: 70 | C70: 2 | D70: 1966 | E70: 8016 | F70: 859 | G70: 2408 | I70: 28 | J70: 606 | N70: 11917
A71: 21967 | B71: 71 | C71: 2 | D71: 1967 | E71: 7128 | F71: 823 | G71: 2313 | I71: 29 | J71: 584 | N71: 10877
A72: 21968 | B72: 72 | C72: 2 | D72: 1968 | E72: 7164 | F72: 786 | G72: 2441 | I72: 28 | J72: 702 | N72: 11121
A73: 21969 | B73: 73 | C73: 2 | D73: 1969 | E73: 8184 | F73: 938 | G73: 2978 | I73: 38 | J73: 817 | N73: 12955
A74: 21970 | B74: 74 | C74: 2 | D74: 1970 | E74: 8409 | F74: 1121 | G74: 3034 | H74: 11 | I74: 46 | J74: 872 | N74: 13493
A75: 21971 | B75: 75 | C75: 2 | D75: 1971 | E75: 8269 | F75: 1315 | G75: 3071 | H75: 17 | I75: 58 | J75: 973 | L75: 138 | N75: 13841
A76: 21972 | B76: 76 | C76: 2 | D76: 1972 | E76: 7948 | F76: 1419 | G76: 3235 | H76: 15 | I76: 61 | J76: 987 | L76: 145 | N76: 13810
A77: 21973 | B77: 77 | C77: 2 | D77: 1973 | E77: 8389 | F77: 1651 | G77: 3401 | H77: 14 | I77: 65 | J77: 997 | L77: 223 | N77: 14740
A78: 21974 | B78: 78 | C78: 2 | D78: 1974 | E78: 8545 | F78: 1635 | G78: 3541 | H78: 23 | I78: 72 | J78: 1072 | L78: 238 | N78: 15126
A79: 21975 | B79: 79 | C79: 2 | D79: 1975 | E79: 8618 | F79: 1506 | G79: 3467 | H79: 22 | I79: 67 | J79: 1190 | L79: 275 | N79: 15145
A80: 21976 | B80: 80 | C80: 2 | D80: 1976 | E80: 8539 | F80: 1495 | G80: 3423 | H80: 26 | I80: 66 | J80: 1289 | L80: 283 | N80: 15121
A81: 21977 | B81: 81 | C81: 2 | D81: 1977 | E81: 8692 | F81: 1353 | G81: 3355 | H81: 21 | I81: 62 | J81: 1409 | L81: 291 | N81: 15183
A82: 21978 | B82: 82 | C82: 2 | D82: 1978 | E82: 8543 | F82: 1451 | G82: 3366 | H82: 18 | I82: 52 | J82: 1485 | L82: 297 | N82: 15212
A83: 21979 | B83: 83 | C83: 2 | D83: 1979 | E83: 8555 | F83: 1495 | G83: 3364 | H83: 17 | I83: 58 | J83: 1552 | L83: 331 | N83: 15372
A84: 21980 | B84: 84 | C84: 2 | D84: 1980 | E84: 8479 | F84: 1644 | G84: 3269 | H84: 20 | I84: 64 | J84: 1553 | L84: 259 | N84: 15288
A85: 21981 | B85: 85 | C85: 2 | D85: 1981 | E85: 8282 | F85: 1701 | G85: 3314 | H85: 19 | I85: 66 | J85: 1578 | L85: 309 | N85: 15269
A86: 21982 | B86: 86 | C86: 2 | D86: 1982 | E86: 7876 | F86: 1605 | G86: 3176 | H86: 18 | I86: 55 | J86: 1487 | L86: 349 | N86: 14566
A87: 21983 | B87: 87 | C87: 2 | D87: 1983 | E87: 7614 | F87: 1597 | G87: 3046 | H87: 14 | I87: 48 | J87: 1511 | L87: 294 | N87: 14124
A88: 21984 | B88: 88 | C88: 2 | D88: 1984 | E88: 7568 | F88: 1579 | G88: 2991 | H88: 18 | I88: 57 | J88: 1517 | L88: 287 | N88: 14017
A89: 21985 | B89: 89 | C89: 2 | D89: 1985 | E89: 7425 | F89: 1594 | G89: 2865 | H89: 23 | I89: 71 | J89: 1549 | L89: 252 | N89: 13779
A90: 21986 | B90: 90 | C90: 2 | D90: 1986 | E90: 7042 | F90: 1511 | G90: 2823 | H90: 29 | I90: 73 | J90: 1547 | L90: 230 | N90: 13255
A91: 21987 | B91: 91 | C91: 2 | D91: 1987 | E91: 6729 | F91: 1444 | G91: 2636 | H91: 31 | I91: 66 | J91: 1570 | L91: 222 | N91: 12698
A92: 21988 | B92: 92 | C92: 2 | D92: 1988 | E92: 6462 | F92: 1402 | G92: 2478 | H92: 29 | I92: 64 | J92: 1524 | L92: 219 | N92: 12178
A93: 21989 | B93: 93 | C93: 2 | D93: 1989 | E93: 6406 | F93: 1313 | G93: 2288 | H93: 29 | I93: 62 | J93: 1451 | L93: 221 | N93: 11770
A94: 21990 | B94: 94 | C94: 2 | D94: 1990 | E94: 6271 | F94: 1335 | G94: 2133 | H94: 38 | I94: 63 | J94: 1345 | L94: 245 | N94: 11430
A95: 21991 | B95: 95 | C95: 2 | D95: 1991 | E95: 6126 | F95: 1317 | G95: 1991 | H95: 31 | I95: 65 | J95: 1264 | L95: 241 | N95: 11035
A96: 21992 | B96: 96 | C96: 2 | D96: 1992 | E96: 5967 | F96: 1249 | G96: 1796 | H96: 30 | I96: 64 | J96: 1174 | L96: 252 | N96: 10532
A97: 21993 | B97: 97 | C97: 2 | D97: 1993 | E97: 5763 | F97: 1117 | G97: 1657 | H97: 31 | I97: 53 | J97: 1142 | L97: 257 | N97: 10020
A98: 21994 | B98: 98 | C98: 2 | D98: 1994 | E98: 5722 | F98: 1038 | G98: 1629 | H98: 37 | I98: 33 | J98: 1131 | L98: 257 | N98: 9847
A99: 21995 | B99: 99 | C99: 2 | D99: 1995 | E99: 5545 | F99: 964 | G99: 1519 | H99: 42 | I99: 25 | J99: 1073 | L99: 309 | N99: 9477
A100: 21996 | B100: 100 | C100: 2 | D100: 1996 | E100: 5455 | F100: 931 | G100: 1416 | H100: 45 | I100: 25 | J100: 1069 | L100: 238 | N100: 9179
A101: 21997 | B101: 101 | C101: 2 | D101: 1997 | E101: 5505 | F101: 988 | G101: 1379 | H101: 46 | I101: 32 | J101: 1090 | L101: 295 | N101: 9335
A102: 21998 | B102: 102 | C102: 2 | D102: 1998 | E102: 5550 | F102: 1095 | G102: 1430 | H102: 56 | I102: 28 | J102: 1199 | L102: 299 | M102: 51 | N102: 9708
A103: 21999 | B103: 103 | C103: 2 | D103: 1999 | E103: 5481 | F103: 1086 | G103: 1503 | H103: 57 | I103: 25 | J103: 1165 | L103: 340 | M103: 108 | N103: 9765
A104: 22000 | B104: 104 | C104: 2 | D104: 2000 | E104: 5351 | F104: 1087 | G104: 1574 | H104: 34 | I104: 25 | J104: 1147 | L104: 329 | M104: 139 | N104: 9686
A105: 22001 | B105: 105 | C105: 2 | D105: 2001 | E105: 5169 | F105: 1094 | G105: 1554 | H105: 35 | I105: 31 | J105: 1145 | L105: 337 | M105: 156 | N105: 9521
A106: 22002 | B106: 106 | C106: 2 | D106: 2002 | E106: 4807 | F106: 1038 | G106: 1502 | H106: 40 | I106: 27 | J106: 1135 | K106: 182 | L106: 312 | M106: 139 | N106: 9182
A107: 22003 | B107: 107 | C107: 2 | D107: 2003 | E107: 4429 | F107: 1062 | G107: 1397 | H107: 45 | I107: 28 | J107: 1121 | K107: 180 | L107: 330 | M107: 122 | N107: 8714
A108: 22004 | B108: 108 | C108: 2 | D108: 2004 | E108: 4354 | F108: 1055 | G108: 1371 | H108: 48 | I108: 29 | J108: 1117 | K108: 168 | L108: 399 | M108: 119 | N108: 8660
A109: 22005 | B109: 109 | C109: 2 | D109: 2005 | E109: 4370 | F109: 1067 | G109: 1460 | H109: 55 | I109: 28 | J109: 1211 | K109: 186 | L109: 506 | M109: 121 | N109: 9004
A110: 22006 | B110: 110 | C110: 2 | D110: 2006 | E110: 4547 | F110: 1055 | G110: 1491 | H110: 68 | I110: 43 | J110: 1245 | K110: 190 | L110: 473 | M110: 172 | N110: 9284
A111: 22007 | B111: 111 | C111: 2 | D111: 2007 | E111: 4667 | F111: 1102 | G111: 1550 | H111: 87 | I111: 49 | J111: 1280 | K111: 175 | L111: 464 | M111: 206 | N111: 9580
A112: 22008 | B112: 112 | C112: 2 | D112: 2008 | E112: 4716 | F112: 1158 | G112: 1596 | H112: 90 | I112: 85 | J112: 1202 | K112: 178 | L112: 455 | M112: 253 | N112: 9733
A113: 22009 | B113: 113 | C113: 2 | D113: 2009 | E113: 4506 | F113: 1071 | G113: 1461 | H113: 78 | I113: 75 | J113: 1159 | K113: 155 | L113: 507 | M113: 415 | N113: 9427
A114: 22010 | B114: 114 | C114: 2 | D114: 2010 | E114: 4283 | F114: 1063 | G114: 1492 | H114: 83 | I114: 70 | J114: 1033 | K114: 163 | L114: 526 | M114: 457 | N114: 9170
A115: 22011 | B115: 115 | C115: 2 | D115: 2011 | E115: 4130 | F115: 1039 | G115: 1491 | H115: 79 | I115: 67 | J115: 1045 | K115: 154 | L115: 511 | M115: 451 | N115: 8967
A116: 22012 | B116: 116 | C116: 2 | D116: 2012 | E116: 4055 | F116: 990 | G116: 1536 | H116: 81 | I116: 62 | J116: 980 | K116: 161 | L116: 489 | M116: 444 | N116: 8798
A117: 22013 | B117: 117 | C117: 2 | D117: 2013 | E117: 3827 | F117: 977 | G117: 1465 | H117: 87 | I117: 62 | J117: 922 | K117: 142 | L117: 453 | M117: 460 | N117: 8395
A118: 22014 | B118: 118 | C118: 2 | D118: 2014 | E118: 3593 | F118: 989 | G118: 1386 | H118: 88 | I118: 49 | J118: 848 | K118: 117 | L118: 423 | M118: 465 | N118: 7958
A119: 22015 | B119: 119 | C119: 2 | D119: 2015 | E119: 3364 | F119: 921 | G119: 1299 | H119: 73 | I119: 45 | J119: 799 | K119: 122 | L119: 421 | M119: 457 | N119: 7501
A120: 22016 | B120: 120 | C120: 2 | D120: 2016 | E120: 3167 | F120: 890 | G120: 1222 | H120: 59 | I120: 53 | J120: 736 | K120: 101 | L120: 391 | M120: 516 | N120: 7135
A121: 22017 | B121: 121 | C121: 2 | D121: 2017 | E121: 3148 | F121: 882 | G121: 1193 | H121: 58 | I121: 52 | J121: 782 | K121: 119 | L121: 397 | M121: 459 | N121: 7090
A122: 22018 | B122: 122 | C122: 2 | D122: 2018 | E122: 3196 | F122: 925 | G122: 1180 | H122: 56 | I122: 58 | J122: 810 | K122: 136 | L122: 387 | M122: 373 | N122: 7121
A123: 22019 | B123: 123 | C123: 2 | D123: 2019 | E123: 3272 | F123: 969 | G123: 1154 | H123: 58 | I123: 66 | J123: 785 | K123: 142 | L123: 433 | M123: 286 | N123: 7165
A124: 22020 | B124: 124 | C124: 2 | D124: 2020 | E124: 3306 | F124: 984 | G124: 1194 | H124: 67 | I124: 68 | J124: 697 | K124: 146 | L124: 472 | M124: 298 | N124: 7232
A125: 22021 | B125: 125 | C125: 2 | D125: 2021 | E125: 3412 | F125: 978 | G125: 1222 | H125: 71 | I125: 56 | J125: 593 | K125: 138 | L125: 536 | M125: 184 | N125: 7190
A126: 22022 | B126: 126 | C126: 2 | D126: 2022 | E126: 3507 | F126: 1000 | G126: 1144 | H126: 72 | I126: 67 | J126: 588 | K126: 153 | L126: 588 | M126: 212 | N126: 7331
A127: 22023 | B127: 127 | C127: 2 | D127: 2023 | E127: 3610 | F127: 1034 | G127: 1067 | H127: 79 | I127: 80 | J127: 579 | K127: 146 | L127: 590 | M127: 177 | N127: 7362
A128: =C128&D128 -> 31961 | B128: 128 | C128: 3 | D128: 1961 | E128: 16037 | F128: 2771 | G128: 4013 | I128: 50 | J128: 616 | N128: 23487
A129: 31962 | B129: 129 | C129: 3 | D129: 1962 | E129: 16230 | F129: 2925 | G129: 4573 | I129: 60 | J129: 782 | N129: 24570
A130: 31963 | B130: 130 | C130: 3 | D130: 1963 | E130: 17099 | F130: 2869 | G130: 4946 | I130: 53 | J130: 958 | N130: 25925
A131: 31964 | B131: 131 | C131: 3 | D131: 1964 | E131: 17540 | F131: 2826 | G131: 4871 | I131: 51 | J131: 1077 | N131: 26365
A132: 31965 | B132: 132 | C132: 3 | D132: 1965 | E132: 17352 | F132: 2786 | G132: 4950 | I132: 53 | J132: 1128 | N132: 26269
A133: 31966 | B133: 133 | C133: 3 | D133: 1966 | E133: 12875 | F133: 2035 | G133: 3647 | I133: 48 | J133: 989 | N133: 19594
A134: 31967 | B134: 134 | C134: 3 | D134: 1967 | E134: 12418 | F134: 1911 | G134: 3421 | I134: 65 | J134: 909 | N134: 18724
A135: 31968 | B135: 135 | C135: 3 | D135: 1968 | E135: 12473 | F135: 1740 | G135: 3383 | I135: 80 | J135: 983 | N135: 18659
A136: 31969 | B136: 136 | C136: 3 | D136: 1969 | E136: 14594 | F136: 2235 | G136: 4487 | I136: 81 | J136: 1185 | N136: 22582
A137: 31970 | B137: 137 | C137: 3 | D137: 1970 | E137: 15919 | F137: 2388 | G137: 4310 | I137: 220 | J137: 1291 | L137: 131 | N137: 24259
A138: 31971 | B138: 138 | C138: 3 | D138: 1971 | E138: 15692 | F138: 2801 | G138: 4515 | I138: 206 | J138: 1365 | L138: 135 | N138: 24714
A139: 31972 | B139: 139 | C139: 3 | D139: 1972 | E139: 15321 | F139: 2995 | G139: 4800 | I139: 216 | J139: 1491 | L139: 152 | N139: 24975
A140: 31973 | B140: 140 | C140: 3 | D140: 1973 | E140: 15420 | F140: 3288 | G140: 4942 | I140: 225 | J140: 1581 | L140: 162 | N140: 25618
A141: 31974 | B141: 141 | C141: 3 | D141: 1974 | E141: 16046 | F141: 3604 | G141: 5229 | H141: 10 | I141: 219 | J141: 1674 | L141: 153 | N141: 26935
A142: 31975 | B142: 142 | C142: 3 | D142: 1975 | E142: 16686 | F142: 3610 | G142: 5408 | H142: 10 | I142: 213 | J142: 1925 | L142: 150 | N142: 28002
A143: 31976 | B143: 143 | C143: 3 | D143: 1976 | E143: 17308 | F143: 3619 | G143: 5754 | H143: 13 | I143: 213 | J143: 2160 | L143: 148 | N143: 29215
A144: 31977 | B144: 144 | C144: 3 | D144: 1977 | E144: 17864 | F144: 3651 | G144: 6016 | H144: 11 | I144: 207 | J144: 2671 | L144: 158 | N144: 30578
A145: 31978 | B145: 145 | C145: 3 | D145: 1978 | E145: 18445 | F145: 3693 | G145: 6077 | H145: 15 | I145: 221 | J145: 2671 | L145: 188 | N145: 31310
A146: 31979 | B146: 146 | C146: 3 | D146: 1979 | E146: 18587 | F146: 3813 | G146: 6034 | H146: 15 | I146: 223 | J146: 2760 | L146: 178 | N146: 31610
A147: 31980 | B147: 147 | C147: 3 | D147: 1980 | E147: 18514 | F147: 3932 | G147: 5826 | H147: 13 | I147: 207 | J147: 2768 | L147: 168 | N147: 31428
A148: 31981 | B148: 148 | C148: 3 | D148: 1981 | E148: 17837 | F148: 3924 | G148: 5252 | H148: 9 | I148: 171 | J148: 2829 | L148: 166 | N148: 30188
A149: 31982 | B149: 149 | C149: 3 | D149: 1982 | E149: 16905 | F149: 3802 | G149: 4926 | H149: 9 | I149: 203 | J149: 2848 | L149: 151 | N149: 28844
A150: 31983 | B150: 150 | C150: 3 | D150: 1983 | E150: 15919 | F150: 3582 | G150: 4671 | H150: 7 | I150: 168 | J150: 2874 | L150: 240 | N150: 27461
A151: 31984 | B151: 151 | C151: 3 | D151: 1984 | E151: 15463 | F151: 3603 | G151: 4660 | H151: 8 | I151: 68 | J151: 2916 | L151: 382 | N151: 27100
A152: 31985 | B152: 152 | C152: 3 | D152: 1985 | E152: 15133 | F152: 3372 | G152: 4650 | H152: 4 | I152: 69 | J152: 2940 | L152: 579 | N152: 26747
A153: 31986 | B153: 153 | C153: 3 | D153: 1986 | E153: 14675 | F153: 3288 | G153: 4457 | H153: 9 | I153: 68 | J153: 2799 | L153: 634 | N153: 25930
A154: 31987 | B154: 154 | C154: 3 | D154: 1987 | E154: 14228 | F154: 3157 | G154: 4256 | H154: 11 | I154: 62 | J154: 2730 | L154: 580 | N154: 25024
A155: 31988 | B155: 155 | C155: 3 | D155: 1988 | E155: 13717 | F155: 2888 | G155: 4121 | H155: 12 | I155: 73 | J155: 2636 | L155: 547 | N155: 23994
A156: 31989 | B156: 156 | C156: 3 | D156: 1989 | E156: 13617 | F156: 2832 | G156: 4148 | H156: 8 | I156: 81 | J156: 2474 | L156: 489 | N156: 23649
A157: 31990 | B157: 157 | C157: 3 | D157: 1990 | E157: 13632 | F157: 2803 | G157: 4009 | H157: 9 | I157: 91 | J157: 2366 | L157: 469 | N157: 23379
A158: 31991 | B158: 158 | C158: 3 | D158: 1991 | E158: 13458 | F158: 2737 | G158: 3811 | H158: 9 | I158: 114 | J158: 2214 | L158: 455 | N158: 22798
A159: 31992 | B159: 159 | C159: 3 | D159: 1992 | E159: 13250 | F159: 2638 | G159: 3535 | H159: 13 | I159: 114 | J159: 1991 | L159: 409 | N159: 21950
A160: 31993 | B160: 160 | C160: 3 | D160: 1993 | E160: 13194 | F160: 2330 | G160: 3382 | H160: 14 | I160: 108 | J160: 1840 | L160: 377 | N160: 21245
A161: 31994 | B161: 161 | C161: 3 | D161: 1994 | E161: 12898 | F161: 2101 | G161: 3231 | H161: 10 | I161: 70 | J161: 1696 | L161: 383 | N161: 20389
A162: 31995 | B162: 162 | C162: 3 | D162: 1995 | E162: 12875 | F162: 1950 | G162: 2956 | H162: 8 | I162: 66 | J162: 1612 | L162: 365 | N162: 19832
A163: 31996 | B163: 163 | C163: 3 | D163: 1996 | E163: 12756 | F163: 1849 | G163: 2796 | H163: 3 | I163: 58 | J163: 1614 | L163: 384 | N163: 19460
A164: 31997 | B164: 164 | C164: 3 | D164: 1997 | E164: 12731 | F164: 1919 | G164: 2793 | H164: 3 | I164: 163 | J164: 1735 | L164: 346 | N164: 19690
A165: 31998 | B165: 165 | C165: 3 | D165: 1998 | E165: 12531 | F165: 2077 | G165: 2848 | H165: 43 | I165: 173 | J165: 1885 | L165: 418 | M165: 515 | N165: 20490
A166: 31999 | B166: 166 | C166: 3 | D166: 1999 | E166: 12260 | F166: 2081 | G166: 2810 | H166: 55 | I166: 220 | J166: 1962 | L166: 510 | M166: 630 | N166: 20528
A167: 32000 | B167: 167 | C167: 3 | D167: 2000 | E167: 11900 | F167: 2122 | G167: 2933 | H167: 59 | I167: 203 | J167: 1984 | L167: 480 | M167: 502 | N167: 20183
A168: 32001 | B168: 168 | C168: 3 | D168: 2001 | E168: 11534 | F168: 2167 | G168: 2943 | H168: 45 | I168: 207 | J168: 1875 | L168: 433 | M168: 381 | N168: 19585
A169: 32002 | B169: 169 | C169: 3 | D169: 2002 | E169: 10620 | F169: 2114 | G169: 2804 | H169: 55 | I169: 190 | J169: 1836 | K169: 329 | L169: 424 | M169: 301 | N169: 18673
A170: 32003 | B170: 170 | C170: 3 | D170: 2003 | E170: 10105 | F170: 2166 | G170: 2649 | H170: 64 | I170: 191 | J170: 1857 | K170: 307 | L170: 474 | M170: 310 | N170: 18123
A171: 32004 | B171: 171 | C171: 3 | D171: 2004 | E171: 10022 | F171: 2181 | G171: 2597 | H171: 68 | I171: 179 | J171: 1893 | K171: 288 | L171: 528 | M171: 300 | N171: 18056
A172: 32005 | B172: 172 | C172: 3 | D172: 2005 | E172: 9980 | F172: 2257 | G172: 2595 | H172: 72 | I172: 177 | J172: 1991 | K172: 287 | L172: 748 | M172: 370 | N172: 18477
A173: 32006 | B173: 173 | C173: 3 | D173: 2006 | E173: 10155 | F173: 2327 | G173: 2755 | H173: 77 | I173: 177 | J173: 2074 | K173: 318 | L173: 704 | M173: 484 | N173: 19071
A174: 32007 | B174: 174 | C174: 3 | D174: 2007 | E174: 10426 | F174: 2494 | G174: 2944 | H174: 78 | I174: 205 | J174: 2079 | K174: 334 | L174: 722 | M174: 500 | N174: 19782
A175: 32008 | B175: 175 | C175: 3 | D175: 2008 | E175: 10462 | F175: 2698 | G175: 2946 | H175: 77 | I175: 235 | J175: 2020 | K175: 327 | L175: 738 | M175: 467 | N175: 19970
A176: 32009 | B176: 176 | C176: 3 | D176: 2009 | E176: 9999 | F176: 2580 | G176: 2822 | H176: 93 | I176: 252 | J176: 1811 | K176: 301 | L176: 806 | M176: 1297 | N176: 19961
A177: 32010 | B177: 177 | C177: 3 | D177: 2010 | E177: 9520 | F177: 2556 | G177: 2789 | H177: 101 | I177: 275 | J177: 1681 | K177: 283 | L177: 794 | M177: 1815 | N177: 19814
A178: 32011 | B178: 178 | C178: 3 | D178: 2011 | E178: 9286 | F178: 2487 | G178: 2829 | H178: 129 | I178: 317 | J178: 1555 | K178: 290 | L178: 801 | M178: 1713 | N178: 19407
A179: 32012 | B179: 179 | C179: 3 | D179: 2012 | E179: 9067 | F179: 2468 | G179: 2800 | H179: 123 | I179: 419 | J179: 1423 | K179: 271 | L179: 776 | M179: 1824 | N179: 19171
A180: 32013 | B180: 180 | C180: 3 | D180: 2013 | E180: 8684 | F180: 2528 | G180: 2699 | H180: 120 | I180: 450 | J180: 1306 | K180: 291 | L180: 805 | M180: 1755 | N180: 18638
A181: 32014 | B181: 181 | C181: 3 | D181: 2014 | E181: 8172 | F181: 2446 | G181: 2489 | H181: 106 | I181: 461 | J181: 1172 | K181: 282 | L181: 795 | M181: 1770 | N181: 17693
A182: 32015 | B182: 182 | C182: 3 | D182: 2015 | E182: 7632 | F182: 2346 | G182: 2406 | H182: 98 | I182: 462 | J182: 1065 | K182: 264 | L182: 791 | M182: 1769 | N182: 16833
A183: 32016 | B183: 183 | C183: 3 | D183: 2016 | E183: 7388 | F183: 2241 | G183: 2287 | H183: 96 | I183: 505 | J183: 1014 | K183: 244 | L183: 845 | M183: 1423 | N183: 16043
A184: 32017 | B184: 184 | C184: 3 | D184: 2017 | E184: 7280 | F184: 2278 | G184: 2265 | H184: 91 | I184: 545 | J184: 1061 | K184: 255 | L184: 815 | M184: 1231 | N184: 15821
A185: 32018 | B185: 185 | C185: 3 | D185: 2018 | E185: 7513 | F185: 2433 | G185: 2275 | H185: 99 | I185: 538 | J185: 1068 | K185: 286 | L185: 800 | M185: 1142 | N185: 16154
A186: 32019 | B186: 186 | C186: 3 | D186: 2019 | E186: 7841 | F186: 2601 | G186: 2414 | H186: 94 | I186: 542 | J186: 1109 | K186: 289 | L186: 860 | M186: 1061 | N186: 16811
A187: 32020 | B187: 187 | C187: 3 | D187: 2020 | E187: 8011 | F187: 2623 | G187: 2409 | H187: 106 | I187: 533 | J187: 995 | K187: 279 | L187: 981 | M187: 1006 | N187: 16943
A188: 32021 | B188: 188 | C188: 3 | D188: 2021 | E188: 8205 | F188: 2594 | G188: 2499 | H188: 108 | I188: 519 | J188: 917 | K188: 242 | L188: 1108 | M188: 918 | N188: 17110
A189: 32022 | B189: 189 | C189: 3 | D189: 2022 | E189: 8291 | F189: 2643 | G189: 2588 | H189: 126 | I189: 520 | J189: 923 | K189: 265 | L189: 1267 | M189: 789 | N189: 17412
A190: 32023 | B190: 190 | C190: 3 | D190: 2023 | E190: 8263 | F190: 2668 | G190: 2505 | H190: 138 | I190: 485 | J190: 909 | K190: 267 | L190: 1417 | M190: 659 | N190: 17311
A191: =C191&D191 -> 41961 | B191: 191 | C191: 4 | D191: 1961 | E191: 13227 | F191: 3722 | G191: 4796 | I191: 121 | J191: 415 | N191: 22281
A192: 41962 | B192: 192 | C192: 4 | D192: 1962 | E192: 13828 | F192: 3895 | G192: 5099 | I192: 132 | J192: 453 | N192: 23407
A193: 41963 | B193: 193 | C193: 4 | D193: 1963 | E193: 14385 | F193: 3858 | G193: 5495 | I193: 129 | J193: 483 | N193: 24350
A194: 41964 | B194: 194 | C194: 4 | D194: 1964 | E194: 14481 | F194: 3766 | G194: 5478 | I194: 125 | J194: 565 | N194: 24415
A195: 41965 | B195: 195 | C195: 4 | D195: 1965 | E195: 14495 | F195: 3701 | G195: 5450 | I195: 134 | J195: 581 | N195: 24361
A196: 41966 | B196: 196 | C196: 4 | D196: 1966 | E196: 10875 | F196: 3011 | G196: 4058 | I196: 114 | J196: 489 | N196: 18547
A197: 41967 | B197: 197 | C197: 4 | D197: 1967 | E197: 11107 | F197: 3002 | G197: 3992 | I197: 112 | J197: 514 | N197: 18727
A198: 41968 | B198: 198 | C198: 4 | D198: 1968 | E198: 11131 | F198: 3182 | G198: 4128 | I198: 124 | J198: 561 | N198: 19126
A199: 41969 | B199: 199 | C199: 4 | D199: 1969 | E199: 13038 | F199: 3653 | G199: 5304 | I199: 335 | J199: 730 | N199: 23060
A200: 41970 | B200: 200 | C200: 4 | D200: 1970 | E200: 13874 | F200: 4265 | G200: 5402 | H200: 3 | I200: 395 | J200: 769 | L200: 91 | N200: 24799
... 431 more rows

Sheet Daten_Auswahl (hidden)
B1: Anzahl der Lehrlinge nach Sparten
C2: Gewerbe und Handwerk | D2: Industrie | E2: Handel | F2: Bank und Versicherung | G2: Transport und Verkehr | H2: Tourismus und Freizeitwirtschaft | I2: Information und Consulting | J2: Sonstige Lehrberechtigte | K2: Überbetriebliche Lehrausbildung | L2: Insgesamt
B3: 2023 | C3: =INDEX($B$9:$L$1000,MATCH($B3,Zeit,0),COLUMN(B1)) -> 46666 | D3: 16804 | E3: 14763 | F3: 1364 | G3: 2981 | H3: 7195 | I3: 2802 | J3: 9822 | K3: 5869 | L3: 108266
B4: =IFERROR(INDEX(Zeit,MATCH(OnClick,Zeit,0)),2000) -> 2000 | C4: =INDEX($B$9:$L$1000,MATCH($B4,Zeit,0),COLUMN(B2)) -> 67309 | D4: 14557 | E4: 19517 | F4: 900 | G4: 2269 | H4: 13233 | I4: . | J4: 6230 | K4: 2585 | L4: 126600
B5: ="Vergleich " & B4 & " und " & B3 -> Vergleich 2000 und 2023
C6: 5 | D6: 6 | E6: 7 | F6: 8 | G6: 9 | H6: 10 | I6: 11 | J6: 12 | K6: 13 | L6: 14
B7: Nominal Werte | C7: =SUBSTITUTE(C8," ",) -> GewerbeundHandwerk | D7: =SUBSTITUTE(D8," ",) -> Industrie | E7: Handel | F7: BankundVersicherung | G7: TransportundVerkehr | H7: TourismusundFreizeitwirtschaft | I7: InformationundConsulting | J7: SonstigeLehrberechtigte | K7: =SUBSTITUTE(SUBSTITUTE(K8," 2",)," ",) -> ÜberbetrieblicheLehrausbildung | L7: Insgesamt | N7: Graph1 | O7: Graph2 | P7: GraphMax | Q7: GraphMin | R7: Graph3_Skalierung | S7: Skalierungsfaktor | T7: 1.3
A8: Zeilenindex | C8: Gewerbe und Handwerk | D8: Industrie | E8: Handel | F8: Bank und Versicherung | G8: Transport und Verkehr | H8: Tourismus und Freizeitwirtschaft | I8: Information und Consulting | J8: Sonstige Lehrberechtigte | K8: Überbetriebliche Lehrausbildung | L8: Insgesamt | N8: =IF(ISNA(MATCH(SUBSTITUTE(SUBSTITUTE(OnClick," 2",)," ",),Sparten,0)),"Insgesamt",OnClick_kurz) -> Insgesamt | O8: =VLOOKUP(Graph1Title,S9:T18,2,FALSE) & " - " & Auswahl_Bundesland -> Insgesamt - ÖSTERREICH | P8: =IF(Graph1Title="Insgesamt","Lehrlings- und Bevölkerungsentwicklung im Vergleich ³","") -> Lehrlings- und Bevölkerungsentwicklung im Vergleich ³
A9: =VLOOKUP(Bundesland&Daten_Auswahl!$B9,Daten_Matrix,2,FALSE) -> 569 | B9: 1961 | C9: =IF(ISERROR($A9),0,IF(INDEX(Daten_Matrix,$A9,C$6)=0,".",INDEX(Daten_Matrix,$A9,C$6))) -> 87578 | D9: 20726 | E9: 30313 | F9: . | G9: 743 | H9: 4388 | I9: . | J9: . | K9: . | L9: 143748 | N9: =INDEX(INDIRECT(Graph1Title),ROW(A1)) -> 143748 | O9: =IF(SUM(P9:Q9)=0,N9,0) -> 143748 | P9: =IF(N9>=LARGE(Graph1,5),N9,0) -> 0 | Q9: =IF(N9<=SMALL(Graph1,5),N9,0) -> 0 | R9: =N9*Skalierungsfaktor -> 186872.4 | S9: GewerbeundHandwerk | T9: Gewerbe und Handwerk
A10: =VLOOKUP(Bundesland&Daten_Auswahl!$B10,Daten_Matrix,2,FALSE) -> 570 | B10: 1962 | C10: 88738 | D10: 21333 | E10: 32259 | F10: . | G10: 852 | H10: 5025 | I10: . | J10: . | K10: . | L10: 148207 | N10: =INDEX(INDIRECT(Graph1Title),ROW(A2)) -> 148207 | O10: 148207 | P10: =IF(N10>=LARGE(Graph1,5),N10,0) -> 0 | Q10: =IF(N10<=SMALL(Graph1,5),N10,0) -> 0 | R10: 192669.1 | S10: Industrie | T10: Industrie
A11: =VLOOKUP(Bundesland&Daten_Auswahl!$B11,Daten_Matrix,2,FALSE) -> 571 | B11: 1963 | C11: 91750 | D11: 21601 | E11: 34248 | F11: . | G11: 884 | H11: 5807 | I11: . | J11: . | K11: . | L11: 154290 | N11: 154290 | O11: 154290 | P11: =IF(N11>=LARGE(Graph1,5),N11,0) -> 0 | Q11: =IF(N11<=SMALL(Graph1,5),N11,0) -> 0 | R11: 200577 | S11: Handel | T11: Handel
A12: =VLOOKUP(Bundesland&Daten_Auswahl!$B12,Daten_Matrix,2,FALSE) -> 572 | B12: 1964 | C12: 91989 | D12: 21219 | E12: 33419 | F12: . | G12: 857 | H12: 6441 | I12: . | J12: . | K12: . | L12: 153925 | N12: 153925 | O12: 153925 | P12: =IF(N12>=LARGE(Graph1,5),N12,0) -> 0 | Q12: =IF(N12<=SMALL(Graph1,5),N12,0) -> 0 | R12: 200102.5 | S12: BankundVersicherung | T12: Bank und Versicherung
A13: =VLOOKUP(Bundesland&Daten_Auswahl!$B13,Daten_Matrix,2,FALSE) -> 573 | B13: 1965 | C13: 89277 | D13: 20867 | E13: 32527 | F13: . | G13: 834 | H13: 6791 | I13: . | J13: . | K13: . | L13: 150296 | N13: 150296 | O13: 150296 | P13: =IF(N13>=LARGE(Graph1,5),N13,0) -> 0 | Q13: =IF(N13<=SMALL(Graph1,5),N13,0) -> 0 | R13: 195384.8 | S13: TransportundVerkehr | T13: Transport und Verkehr
A14: =VLOOKUP(Bundesland&Daten_Auswahl!$B14,Daten_Matrix,2,FALSE) -> 574 | B14: 1966 | C14: 68276 | D14: 16518 | E14: 23706 | F14: . | G14: 674 | H14: 5729 | I14: . | J14: . | K14: . | L14: 114903 | N14: 114903 | O14: 114903 | P14: =IF(N14>=LARGE(Graph1,5),N14,0) -> 0 | Q14: =IF(N14<=SMALL(Graph1,5),N14,0) -> 0 | R14: 149373.9 | S14: TourismusundFreizeitwirtschaft | T14: Tourismus und Freizeitwirtschaft
A15: =VLOOKUP(Bundesland&Daten_Auswahl!$B15,Daten_Matrix,2,FALSE) -> 575 | B15: 1967 | C15: 65289 | D15: 15939 | E15: 21900 | F15: . | G15: 679 | H15: 5678 | I15: . | J15: . | K15: . | L15: 109485 | N15: 109485 | O15: 109485 | P15: =IF(N15>=LARGE(Graph1,5),N15,0) -> 0 | Q15: =IF(N15<=SMALL(Graph1,5),N15,0) -> 0 | R15: 142330.5 | S15: InformationundConsulting | T15: Information und Consulting
A16: =VLOOKUP(Bundesland&Daten_Auswahl!$B16,Daten_Matrix,2,FALSE) -> 576 | B16: 1968 | C16: 64755 | D16: 15595 | E16: 21909 | F16: . | G16: 726 | H16: 6095 | I16: . | J16: . | K16: . | L16: 109080 | N16: 109080 | O16: 109080 | P16: =IF(N16>=LARGE(Graph1,5),N16,0) -> 0 | Q16: =IF(N16<=SMALL(Graph1,5),N16,0) -> 0 | R16: 141804 | S16: SonstigeLehrberechtigte | T16: Sonstige Lehrberechtigte
A17: =VLOOKUP(Bundesland&Daten_Auswahl!$B17,Daten_Matrix,2,FALSE) -> 577 | B17: 1969 | C17: 74374 | D17: 17444 | E17: 28150 | F17: . | G17: 1398 | H17: 7285 | I17: . | J17: . | K17: . | L17: 128651 | N17: 128651 | O17: 128651 | P17: =IF(N17>=LARGE(Graph1,5),N17,0) -> 0 | Q17: =IF(N17<=SMALL(Graph1,5),N17,0) -> 0 | R17: 167246.3 | S17: ÜberbetrieblicheLehrausbildung | T17: Überbetriebliche Lehrausbildung
A18: =VLOOKUP(Bundesland&Daten_Auswahl!$B18,Daten_Matrix,2,FALSE) -> 578 | B18: 1970 | C18: 78670 | D18: 18898 | E18: 28711 | F18: 26 | G18: 1756 | H18: 7872 | I18: . | J18: 1512 | K18: . | L18: 137445 | N18: 137445 | O18: 137445 | P18: =IF(N18>=LARGE(Graph1,5),N18,0) -> 0 | Q18: =IF(N18<=SMALL(Graph1,5),N18,0) -> 0 | R18: 178678.5 | S18: Insgesamt | T18: Insgesamt
A19: =VLOOKUP(Bundesland&Daten_Auswahl!$B19,Daten_Matrix,2,FALSE) -> 579 | B19: 1971 | C19: =IF(ISERROR($A19),0,IF(INDEX(Daten_Matrix,$A19,C$6)=0,".",INDEX(Daten_Matrix,$A19,C$6))) -> 79289 | D19: 20741 | E19: 29923 | F19: 93 | G19: 2109 | H19: 8494 | I19: . | J19: 1635 | K19: . | L19: 142284 | N19: 142284 | O19: 142284 | P19: =IF(N19>=LARGE(Graph1,5),N19,0) -> 0 | Q19: =IF(N19<=SMALL(Graph1,5),N19,0) -> 0 | R19: 184969.2
A20: =VLOOKUP(Bundesland&Daten_Auswahl!$B20,Daten_Matrix,2,FALSE) -> 580 | B20: 1972 | C20: 79110 | D20: 22796 | E20: 31646 | F20: 269 | G20: 2230 | H20: 9159 | I20: . | J20: 1885 | K20: . | L20: 147095 | N20: 147095 | O20: 147095 | P20: =IF(N20>=LARGE(Graph1,5),N20,0) -> 0 | Q20: =IF(N20<=SMALL(Graph1,5),N20,0) -> 0 | R20: 191223.5
A21: =VLOOKUP(Bundesland&Daten_Auswahl!$B21,Daten_Matrix,2,FALSE) -> 581 | B21: 1973 | C21: 82080 | D21: 25181 | E21: 33250 | F21: 574 | G21: 2565 | H21: 9854 | I21: . | J21: 2352 | K21: . | L21: 155856 | N21: 155856 | O21: 155856 | P21: =IF(N21>=LARGE(Graph1,5),N21,0) -> 0 | Q21: =IF(N21<=SMALL(Graph1,5),N21,0) -> 0 | R21: 202612.8
A22: =VLOOKUP(Bundesland&Daten_Auswahl!$B22,Daten_Matrix,2,FALSE) -> 582 | B22: 1974 | C22: 85394 | D22: 26512 | E22: 34932 | F22: 744 | G22: 2711 | H22: 10127 | I22: . | J22: 3131 | K22: . | L22: 163551 | N22: 163551 | O22: 163551 | P22: =IF(N22>=LARGE(Graph1,5),N22,0) -> 0 | Q22: =IF(N22<=SMALL(Graph1,5),N22,0) -> 0 | R22: 212616.3
A23: =VLOOKUP(Bundesland&Daten_Auswahl!$B23,Daten_Matrix,2,FALSE) -> 583 | B23: 1975 | C23: 88928 | D23: 26844 | E23: 36226 | F23: 704 | G23: 2770 | H23: 11319 | I23: . | J23: 3381 | K23: . | L23: 170172 | N23: 170172 | O23: 170172 | P23: =IF(N23>=LARGE(Graph1,5),N23,0) -> 0 | Q23: =IF(N23<=SMALL(Graph1,5),N23,0) -> 0 | R23: 221223.6
A24: =VLOOKUP(Bundesland&Daten_Auswahl!$B24,Daten_Matrix,2,FALSE) -> 584 | B24: 1976 | C24: 91898 | D24: 27325 | E24: 37917 | F24: 643 | G24: 2800 | H24: 12613 | I24: . | J24: 3323 | K24: . | L24: 176519 | N24: 176519 | O24: 176519 | P24: =IF(N24>=LARGE(Graph1,5),N24,0) -> 0 | Q24: =IF(N24<=SMALL(Graph1,5),N24,0) -> 0 | R24: 229474.7
A25: =VLOOKUP(Bundesland&Daten_Auswahl!$B25,Daten_Matrix,2,FALSE) -> 585 | B25: 1977 | C25: 95815 | D25: 27374 | E25: 39715 | F25: 524 | G25: 2907 | H25: 14143 | I25: . | J25: 3181 | K25: . | L25: 183659 | N25: 183659 | O25: 0 | P25: =IF(N25>=LARGE(Graph1,5),N25,0) -> 183659 | Q25: =IF(N25<=SMALL(Graph1,5),N25,0) -> 0 | R25: 238756.7
A26: =VLOOKUP(Bundesland&Daten_Auswahl!$B26,Daten_Matrix,2,FALSE) -> 586 | B26: 1978 | C26: 99773 | D26: 27672 | E26: 40920 | F26: 522 | G26: 2972 | H26: 15249 | I26: . | J26: 3260 | K26: . | L26: 190368 | N26: 190368 | O26: 0 | P26: =IF(N26>=LARGE(Graph1,5),N26,0) -> 190368 | Q26: =IF(N26<=SMALL(Graph1,5),N26,0) -> 0 | R26: 247478.4
A27: =VLOOKUP(Bundesland&Daten_Auswahl!$B27,Daten_Matrix,2,FALSE) -> 587 | B27: 1979 | C27: 102033 | D27: 28015 | E27: 40526 | F27: 482 | G27: 2973 | H27: 15788 | I27: . | J27: 3335 | K27: . | L27: 193152 | N27: 193152 | O27: 0 | P27: =IF(N27>=LARGE(Graph1,5),N27,0) -> 193152 | Q27: =IF(N27<=SMALL(Graph1,5),N27,0) -> 0 | R27: 251097.6
A28: =VLOOKUP(Bundesland&Daten_Auswahl!$B28,Daten_Matrix,2,FALSE) -> 588 | B28: 1980 | C28: 102051 | D28: 28668 | E28: 40536 | F28: 524 | G28: 3001 | H28: 16232 | I28: . | J28: 3077 | K28: . | L28: 194089 | N28: 194089 | O28: 0 | P28: =IF(N28>=LARGE(Graph1,5),N28,0) -> 194089 | Q28: =IF(N28<=SMALL(Graph1,5),N28,0) -> 0 | R28: 252315.7
A29: =VLOOKUP(Bundesland&Daten_Auswahl!$B29,Daten_Matrix,2,FALSE) -> 589 | B29: 1981 | C29: =IF(ISERROR($A29),0,IF(INDEX(Daten_Matrix,$A29,C$6)=0,".",INDEX(Daten_Matrix,$A29,C$6))) -> 99041 | D29: 28051 | E29: 38453 | F29: 477 | G29: 2878 | H29: 16081 | I29: . | J29: 3209 | K29: . | L29: 188190 | N29: 188190 | O29: 0 | P29: =IF(N29>=LARGE(Graph1,5),N29,0) -> 188190 | Q29: =IF(N29<=SMALL(Graph1,5),N29,0) -> 0 | R29: 244647
A30: =VLOOKUP(Bundesland&Daten_Auswahl!$B30,Daten_Matrix,2,FALSE) -> 590 | B30: 1982 | C30: 94444 | D30: 27167 | E30: 36670 | F30: 532 | G30: 2941 | H30: 16496 | I30: . | J30: 3528 | K30: . | L30: 181778 | N30: 181778 | O30: 181778 | P30: =IF(N30>=LARGE(Graph1,5),N30,0) -> 0 | Q30: =IF(N30<=SMALL(Graph1,5),N30,0) -> 0 | R30: 236311.4
A31: =VLOOKUP(Bundesland&Daten_Auswahl!$B31,Daten_Matrix,2,FALSE) -> 591 | B31: 1983 | C31: 90504 | D31: 26188 | E31: 34808 | F31: 516 | G31: 2865 | H31: 16983 | I31: . | J31: 3853 | K31: . | L31: 175717 | N31: 175717 | O31: 175717 | P31: =IF(N31>=LARGE(Graph1,5),N31,0) -> 0 | Q31: =IF(N31<=SMALL(Graph1,5),N31,0) -> 0 | R31: 228432.1
A32: =VLOOKUP(Bundesland&Daten_Auswahl!$B32,Daten_Matrix,2,FALSE) -> 592 | B32: 1984 | C32: 87575 | D32: 25567 | E32: 34420 | F32: 524 | G32: 2760 | H32: 17570 | I32: . | J32: 4261 | K32: . | L32: 172677 | N32: 172677 | O32: 172677 | P32: =IF(N32>=LARGE(Graph1,5),N32,0) -> 0 | Q32: =IF(N32<=SMALL(Graph1,5),N32,0) -> 0 | R32: 224480.1
A33: =VLOOKUP(Bundesland&Daten_Auswahl!$B33,Daten_Matrix,2,FALSE) -> 593 | B33: 1985 | C33: 85544 | D33: 24932 | E33: 34021 | F33: 454 | G33: 2811 | H33: 17676 | I33: . | J33: 4483 | K33: . | L33: 169921 | N33: 169921 | O33: 169921 | P33: =IF(N33>=LARGE(Graph1,5),N33,0) -> 0 | Q33: =IF(N33<=SMALL(Graph1,5),N33,0) -> 0 | R33: 220897.3
A34: =VLOOKUP(Bundesland&Daten_Auswahl!$B34,Daten_Matrix,2,FALSE) -> 594 | B34: 1986 | C34: 82986 | D34: 24423 | E34: 32835 | F34: 523 | G34: 2758 | H34: 17025 | I34: . | J34: 4400 | K34: . | L34: 164950 | N34: 164950 | O34: 164950 | P34: =IF(N34>=LARGE(Graph1,5),N34,0) -> 0 | Q34: =IF(N34<=SMALL(Graph1,5),N34,0) -> 0 | R34: =N34*Skalierungsfaktor -> 214435
A35: =VLOOKUP(Bundesland&Daten_Auswahl!$B35,Daten_Matrix,2,FALSE) -> 595 | B35: 1987 | C35: 80544 | D35: 23459 | E35: 31018 | F35: 535 | G35: 2684 | H35: 16716 | I35: . | J35: 4299 | K35: . | L35: 159255 | N35: 159255 | O35: 159255 | P35: =IF(N35>=LARGE(Graph1,5),N35,0) -> 0 | Q35: =IF(N35<=SMALL(Graph1,5),N35,0) -> 0 | R35: 207031.5
A36: =VLOOKUP(Bundesland&Daten_Auswahl!$B36,Daten_Matrix,2,FALSE) -> 596 | B36: 1988 | C36: 78392 | D36: 22484 | E36: 29294 | F36: 583 | G36: 2664 | H36: 16085 | I36: . | J36: 4171 | K36: . | L36: 153673 | N36: 153673 | O36: 153673 | P36: =IF(N36>=LARGE(Graph1,5),N36,0) -> 0 | Q36: =IF(N36<=SMALL(Graph1,5),N36,0) -> 0 | R36: 199774.9
A37: =VLOOKUP(Bundesland&Daten_Auswahl!$B37,Daten_Matrix,2,FALSE) -> 597 | B37: 1989 | C37: 77060 | D37: 21820 | E37: 27745 | F37: 557 | G37: 2630 | H37: 15018 | I37: . | J37: 4071 | K37: . | L37: 148901 | N37: 148901 | O37: 148901 | P37: =IF(N37>=LARGE(Graph1,5),N37,0) -> 0 | Q37: =IF(N37<=SMALL(Graph1,5),N37,0) -> 0 | R37: 193571.3
A38: =VLOOKUP(Bundesland&Daten_Auswahl!$B38,Daten_Matrix,2,FALSE) -> 598 | B38: 1990 | C38: 76120 | D38: 21815 | E38: 26352 | F38: 687 | G38: 2689 | H38: 13941 | I38: . | J38: 3912 | K38: . | L38: 145516 | N38: 145516 | O38: 145516 | P38: =IF(N38>=LARGE(Graph1,5),N38,0) -> 0 | Q38: =IF(N38<=SMALL(Graph1,5),N38,0) -> 0 | R38: 189170.8
A39: =VLOOKUP(Bundesland&Daten_Auswahl!$B39,Daten_Matrix,2,FALSE) -> 599 | B39: 1991 | C39: =IF(ISERROR($A39),0,IF(INDEX(Daten_Matrix,$A39,C$6)=0,".",INDEX(Daten_Matrix,$A39,C$6))) -> 74495 | D39: 21327 | E39: 25076 | F39: 759 | G39: 2711 | H39: 12767 | I39: . | J39: 3964 | K39: . | L39: 141099 | N39: 141099 | O39: 141099 | P39: =IF(N39>=LARGE(Graph1,5),N39,0) -> 0 | Q39: =IF(N39<=SMALL(Graph1,5),N39,0) -> 0 | R39: 183428.7
A40: =VLOOKUP(Bundesland&Daten_Auswahl!$B40,Daten_Matrix,2,FALSE) -> 600 | B40: 1992 | C40: 73296 | D40: 20097 | E40: 23402 | F40: 781 | G40: 2698 | H40: 11801 | I40: . | J40: 3952 | K40: . | L40: 136027 | N40: 136027 | O40: 136027 | P40: =IF(N40>=LARGE(Graph1,5),N40,0) -> 0 | Q40: =IF(N40<=SMALL(Graph1,5),N40,0) -> 0 | R40: 176835.1
A41: =VLOOKUP(Bundesland&Daten_Auswahl!$B41,Daten_Matrix,2,FALSE) -> 601 | B41: 1993 | C41: 72449 | D41: 18076 | E41: 22251 | F41: 728 | G41: 2565 | H41: 11562 | I41: . | J41: 3728 | K41: . | L41: 131359 | N41: =INDEX(INDIRECT(Graph1Title),ROW(A33)) -> 131359 | O41: 131359 | P41: =IF(N41>=LARGE(Graph1,5),N41,0) -> 0 | Q41: =IF(N41<=SMALL(Graph1,5),N41,0) -> 0 | R41: 170766.7
A42: =VLOOKUP(Bundesland&Daten_Auswahl!$B42,Daten_Matrix,2,FALSE) -> 602 | B42: 1994 | C42: 71332 | D42: 16278 | E42: 21586 | F42: 708 | G42: 2348 | H42: 11475 | I42: . | J42: 4027 | K42: . | L42: 127754 | N42: 127754 | O42: 127754 | P42: =IF(N42>=LARGE(Graph1,5),N42,0) -> 0 | Q42: =IF(N42<=SMALL(Graph1,5),N42,0) -> 0 | R42: 166080.2
A43: =VLOOKUP(Bundesland&Daten_Auswahl!$B43,Daten_Matrix,2,FALSE) -> 603 | B43: 1995 | C43: 69805 | D43: 14850 | E43: 20212 | F43: 708 | G43: 2126 | H43: 11363 | I43: . | J43: 4313 | K43: . | L43: 123377 | N43: 123377 | O43: 123377 | P43: =IF(N43>=LARGE(Graph1,5),N43,0) -> 0 | Q43: =IF(N43<=SMALL(Graph1,5),N43,0) -> 0 | R43: 160390.1
A44: =VLOOKUP(Bundesland&Daten_Auswahl!$B44,Daten_Matrix,2,FALSE) -> 604 | B44: 1996 | C44: 68942 | D44: 13837 | E44: 19006 | F44: 699 | G44: 1770 | H44: 11589 | I44: . | J44: 4089 | K44: . | L44: 119932 | N44: 119932 | O44: 119932 | P44: =IF(N44>=LARGE(Graph1,5),N44,0) -> 0 | Q44: =IF(N44<=SMALL(Graph1,5),N44,0) -> 0 | R44: 155911.6
A45: =VLOOKUP(Bundesland&Daten_Auswahl!$B45,Daten_Matrix,2,FALSE) -> 605 | B45: 1997 | C45: 69307 | D45: 13973 | E45: 18684 | F45: 682 | G45: 1832 | H45: 12145 | I45: . | J45: 5006 | K45: . | L45: 121629 | N45: 121629 | O45: 121629 | P45: =IF(N45>=LARGE(Graph1,5),N45,0) -> 0 | Q45: =IF(N45<=SMALL(Graph1,5),N45,0) -> 0 | R45: 158117.7
A46: =VLOOKUP(Bundesland&Daten_Auswahl!$B46,Daten_Matrix,2,FALSE) -> 606 | B46: 1998 | C46: 69098 | D46: 14442 | E46: 18920 | F46: 786 | G46: 2065 | H46: 13031 | I46: . | J46: 5335 | K46: 1824 | L46: 125501 | N46: 125501 | O46: 125501 | P46: =IF(N46>=LARGE(Graph1,5),N46,0) -> 0 | Q46: =IF(N46<=SMALL(Graph1,5),N46,0) -> 0 | R46: 163151.3
A47: =VLOOKUP(Bundesland&Daten_Auswahl!$B47,Daten_Matrix,2,FALSE) -> 607 | B47: 1999 | C47: 68493 | D47: 14275 | E47: 19119 | F47: 875 | G47: 2259 | H47: 13515 | I47: . | J47: 6316 | K47: 2499 | L47: 127351 | N47: 127351 | O47: 127351 | P47: =IF(N47>=LARGE(Graph1,5),N47,0) -> 0 | Q47: =IF(N47<=SMALL(Graph1,5),N47,0) -> 0 | R47: 165556.3
A48: =VLOOKUP(Bundesland&Daten_Auswahl!$B48,Daten_Matrix,2,FALSE) -> 608 | B48: 2000 | C48: 67309 | D48: 14557 | E48: 19517 | F48: 900 | G48: 2269 | H48: 13233 | I48: . | J48: 6230 | K48: 2585 | L48: 126600 | N48: 126600 | O48: 126600 | P48: =IF(N48>=LARGE(Graph1,5),N48,0) -> 0 | Q48: =IF(N48<=SMALL(Graph1,5),N48,0) -> 0 | R48: 164580
A49: =VLOOKUP(Bundesland&Daten_Auswahl!$B49,Daten_Matrix,2,FALSE) -> 609 | B49: 2001 | C49: =IF(ISERROR($A49),0,IF(INDEX(Daten_Matrix,$A49,C$6)=0,".",INDEX(Daten_Matrix,$A49,C$6))) -> 65734 | D49: 14905 | E49: 19566 | F49: 897 | G49: 2318 | H49: 12974 | I49: . | J49: 5773 | K49: 1595 | L49: 123762 | N49: 123762 | O49: 123762 | P49: =IF(N49>=LARGE(Graph1,5),N49,0) -> 0 | Q49: =IF(N49<=SMALL(Graph1,5),N49,0) -> 0 | R49: 160890.6
A50: =VLOOKUP(Bundesland&Daten_Auswahl!$B50,Daten_Matrix,2,FALSE) -> 610 | B50: 2002 | C50: 60902 | D50: 15058 | E50: 18884 | F50: 906 | G50: 2169 | H50: 12918 | I50: 2819 | J50: 5644 | K50: 1186 | L50: 120486 | N50: 120486 | O50: 120486 | P50: =IF(N50>=LARGE(Graph1,5),N50,0) -> 0 | Q50: =IF(N50<=SMALL(Graph1,5),N50,0) -> 0 | R50: 156631.8
A51: =VLOOKUP(Bundesland&Daten_Auswahl!$B51,Daten_Matrix,2,FALSE) -> 611 | B51: 2003 | C51: 59028 | D51: 15338 | E51: 18310 | F51: 870 | G51: 2093 | H51: 13330 | I51: 2725 | J51: 5721 | K51: 1625 | L51: 119040 | N51: 119040 | O51: 119040 | P51: =IF(N51>=LARGE(Graph1,5),N51,0) -> 0 | Q51: =IF(N51<=SMALL(Graph1,5),N51,0) -> 0 | R51: 154752
A52: =VLOOKUP(Bundesland&Daten_Auswahl!$B52,Daten_Matrix,2,FALSE) -> 612 | B52: 2004 | C52: 58494 | D52: 15481 | E52: 18126 | F52: 902 | G52: 2044 | H52: 13748 | I52: 2588 | J52: 6048 | K52: 1640 | L52: 119071 | N52: 119071 | O52: 119071 | P52: =IF(N52>=LARGE(Graph1,5),N52,0) -> 0 | Q52: =IF(N52<=SMALL(Graph1,5),N52,0) -> 0 | R52: 154792.3
A53: =VLOOKUP(Bundesland&Daten_Auswahl!$B53,Daten_Matrix,2,FALSE) -> 613 | B53: 2005 | C53: 59268 | D53: 15355 | E53: 18490 | F53: 942 | G53: 2042 | H53: 14441 | I53: 2545 | J53: 7369 | K53: 1926 | L53: 122378 | N53: 122378 | O53: 122378 | P53: =IF(N53>=LARGE(Graph1,5),N53,0) -> 0 | Q53: =IF(N53<=SMALL(Graph1,5),N53,0) -> 0 | R53: 159091.4
A54: =VLOOKUP(Bundesland&Daten_Auswahl!$B54,Daten_Matrix,2,FALSE) -> 614 | B54: 2006 | C54: 60372 | D54: 15364 | E54: 19005 | F54: 1047 | G54: 2072 | H54: 14756 | I54: 2754 | J54: 7677 | K54: 2914 | L54: 125961 | N54: 125961 | O54: 125961 | P54: =IF(N54>=LARGE(Graph1,5),N54,0) -> 0 | Q54: =IF(N54<=SMALL(Graph1,5),N54,0) -> 0 | R54: 163749.3
A55: =VLOOKUP(Bundesland&Daten_Auswahl!$B55,Daten_Matrix,2,FALSE) -> 615 | B55: 2007 | C55: 61503 | D55: 16098 | E55: 19867 | F55: 1115 | G55: 2283 | H55: 14818 | I55: 2984 | J55: 8163 | K55: 2992 | L55: 129823 | N55: 129823 | O55: 129823 | P55: =IF(N55>=LARGE(Graph1,5),N55,0) -> 0 | Q55: =IF(N55<=SMALL(Graph1,5),N55,0) -> 0 | R55: 168769.9
A56: =VLOOKUP(Bundesland&Daten_Auswahl!$B56,Daten_Matrix,2,FALSE) -> 616 | B56: 2008 | C56: 61859 | D56: 17141 | E56: 19913 | F56: 1144 | G56: 2488 | H56: 14495 | I56: 3161 | J56: 8032 | K56: 3647 | L56: 131880 | N56: 131880 | O56: 131880 | P56: =IF(N56>=LARGE(Graph1,5),N56,0) -> 0 | Q56: =IF(N56<=SMALL(Graph1,5),N56,0) -> 0 | R56: 171444
A57: =VLOOKUP(Bundesland&Daten_Auswahl!$B57,Daten_Matrix,2,FALSE) -> 617 | B57: 2009 | C57: 59788 | D57: 16654 | E57: 19034 | F57: 1198 | G57: 2590 | H57: 13546 | I57: 2973 | J57: 8473 | K57: 7420 | L57: 131676 | N57: 131676 | O57: 131676 | P57: =IF(N57>=LARGE(Graph1,5),N57,0) -> 0 | Q57: =IF(N57<=SMALL(Graph1,5),N57,0) -> 0 | R57: 171178.8
A58: =VLOOKUP(Bundesland&Daten_Auswahl!$B58,Daten_Matrix,2,FALSE) -> 618 | B58: 2010 | C58: 57328 | D58: 16352 | E58: 18688 | F58: 1250 | G58: 2724 | H58: 12552 | I58: 2868 | J58: 8675 | K58: 9462 | L58: 129899 | N58: 129899 | O58: 129899 | P58: =IF(N58>=LARGE(Graph1,5),N58,0) -> 0 | Q58: =IF(N58<=SMALL(Graph1,5),N58,0) -> 0 | R58: 168868.7
A59: =VLOOKUP(Bundesland&Daten_Auswahl!$B59,Daten_Matrix,2,FALSE) -> 619 | B59: 2011 | C59: 56077 | D59: 16273 | E59: 18914 | F59: 1307 | G59: 2791 | H59: 11840 | I59: 2809 | J59: 8579 | K59: 9488 | L59: 128078 | N59: 128078 | O59: 128078 | P59: =IF(N59>=LARGE(Graph1,5),N59,0) -> 0 | Q59: =IF(N59<=SMALL(Graph1,5),N59,0) -> 0 | R59: 166501.4
A60: =VLOOKUP(Bundesland&Daten_Auswahl!$B60,Daten_Matrix,2,FALSE) -> 620 | B60: 2012 | C60: 54392 | D60: 16056 | E60: 18804 | F60: 1333 | G60: 2801 | H60: 11304 | I60: 2745 | J60: 8272 | K60: 9521 | L60: 125228 | N60: 125228 | O60: 125228 | P60: =IF(N60>=LARGE(Graph1,5),N60,0) -> 0 | Q60: =IF(N60<=SMALL(Graph1,5),N60,0) -> 0 | R60: 162796.4
A61: =VLOOKUP(Bundesland&Daten_Auswahl!$B61,Daten_Matrix,2,FALSE) -> 621 | B61: 2013 | C61: 52019 | D61: 16173 | E61: 18028 | F61: 1327 | G61: 2750 | H61: 10351 | I61: 2640 | J61: 8113 | K61: 9178 | L61: 120579 | N61: 120579 | O61: 120579 | P61: =IF(N61>=LARGE(Graph1,5),N61,0) -> 0 | Q61: =IF(N61<=SMALL(Graph1,5),N61,0) -> 0 | R61: 156752.7
A62: =VLOOKUP(Bundesland&Daten_Auswahl!$B62,Daten_Matrix,2,FALSE) -> 622 | B62: 2014 | C62: 49183 | D62: 16044 | E62: 16745 | F62: 1255 | G62: 2404 | H62: 9646 | I62: 2422 | J62: 8162 | K62: 9207 | L62: 115068 | N62: 115068 | O62: 115068 | P62: =IF(N62>=LARGE(Graph1,5),N62,0) -> 0 | Q62: =IF(N62<=SMALL(Graph1,5),N62,0) -> 0 | R62: 149588.4
A63: =VLOOKUP(Bundesland&Daten_Auswahl!$B63,Daten_Matrix,2,FALSE) -> 623 | B63: 2015 | C63: 46365 | D63: 15491 | E63: 15833 | F63: 1186 | G63: 2547 | H63: 9075 | I63: 2263 | J63: 7875 | K63: 9328 | L63: 109963 | N63: =INDEX(INDIRECT(Graph1Title),ROW(A55)) -> 109963 | O63: =IF(SUM(P63:Q63)=0,N63,0) -> 109963 | P63: =IF(N63>=LARGE(Graph1,5),N63,0) -> 0 | Q63: =IF(N63<=SMALL(Graph1,5),N63,0) -> 0 | R63: =N63*Skalierungsfaktor -> 142951.9
A64: =VLOOKUP(Bundesland&Daten_Auswahl!$B64,Daten_Matrix,2,FALSE) -> 624 | B64: 2016 | C64: 44909 | D64: 15079 | E64: 15055 | F64: 1151 | G64: 2648 | H64: 8788 | I64: 2143 | J64: 7933 | K64: 9244 | L64: 106950 | N64: 106950 | O64: 0 | P64: =IF(N64>=LARGE(Graph1,5),N64,0) -> 0 | Q64: =IF(N64<=SMALL(Graph1,5),N64,0) -> 106950 | R64: 139035
A65: =VLOOKUP(Bundesland&Daten_Auswahl!$B65,Daten_Matrix,2,FALSE) -> 625 | B65: 2017 | C65: 44602 | D65: 15159 | E65: 14892 | F65: 1135 | G65: 2753 | H65: 8905 | I65: 2185 | J65: 7881 | K65: 9101 | L65: 106613 | N65: 106613 | O65: =IF(SUM(P65:Q65)=0,N65,0) -> 0 | P65: =IF(N65>=LARGE(Graph1,5),N65,0) -> 0 | Q65: =IF(N65<=SMALL(Graph1,5),N65,0) -> 106613 | R65: =N65*Skalierungsfaktor -> 138596.9
A66: =VLOOKUP(Bundesland&Daten_Auswahl!$B66,Daten_Matrix,2,FALSE) -> 626 | B66: 2018 | C66: 45744 | D66: 15754 | E66: 14957 | F66: 1128 | G66: 2816 | H66: 9048 | I66: 2335 | J66: 7831 | K66: 8302 | L66: 107915 | N66: 107915 | O66: 0 | P66: =IF(N66>=LARGE(Graph1,5),N66,0) -> 0 | Q66: =IF(N66<=SMALL(Graph1,5),N66,0) -> 107915 | R66: 140289.5
A67: =VLOOKUP(Bundesland&Daten_Auswahl!$B67,Daten_Matrix,2,FALSE) -> 627 | B67: 2019 | C67: 46390 | D67: 16446 | E67: 15283 | F67: 1222 | G67: 2869 | H67: 8910 | I67: 2509 | J67: 8060 | K67: 7422 | L67: 109111 | N67: 109111 | O67: =IF(SUM(P67:Q67)=0,N67,0) -> 109111 | P67: =IF(N67>=LARGE(Graph1,5),N67,0) -> 0 | Q67: =IF(N67<=SMALL(Graph1,5),N67,0) -> 0 | R67: =N67*Skalierungsfaktor -> 141844.3
A68: =VLOOKUP(Bundesland&Daten_Auswahl!$B68,Daten_Matrix,2,FALSE) -> 628 | B68: 2020 | C68: 46659 | D68: 16389 | E68: 15105 | F68: 1268 | G68: 2786 | H68: 7876 | I68: 2519 | J68: 8574 | K68: 7240 | L68: 108416 | N68: 108416 | O68: =IF(SUM(P68:Q68)=0,N68,0) -> 108416 | P68: =IF(N68>=LARGE(Graph1,5),N68,0) -> 0 | Q68: =IF(N68<=SMALL(Graph1,5),N68,0) -> 0 | R68: =N68*Skalierungsfaktor -> 140940.8
A69: =VLOOKUP(Bundesland&Daten_Auswahl!$B69,Daten_Matrix,2,FALSE) -> 629 | B69: 2021 | C69: 46874 | D69: 16239 | E69: 15149 | F69: 1188 | G69: 2784 | H69: 6914 | I69: 2518 | J69: 9047 | K69: 6880 | L69: 107593 | N69: =INDEX(INDIRECT(Graph1Title),ROW(A61)) -> 107593 | O69: =IF(SUM(P69:Q69)=0,N69,0) -> 0 | P69: =IF(N69>=LARGE(Graph1,5),N69,0) -> 0 | Q69: =IF(N69<=SMALL(Graph1,5),N69,0) -> 107593 | R69: =N69*Skalierungsfaktor -> 139870.9
A70: =VLOOKUP(Bundesland&Daten_Auswahl!$B70,Daten_Matrix,2,FALSE) -> 630 | B70: 2022 | C70: 46913 | D70: 16428 | E70: 15193 | F70: 1218 | G70: 2856 | H70: 6949 | I70: 2764 | J70: 9536 | K70: 6228 | L70: 108085 | N70: =INDEX(INDIRECT(Graph1Title),ROW(A62)) -> 108085 | O70: =IF(SUM(P70:Q70)=0,N70,0) -> 0 | P70: =IF(N70>=LARGE(Graph1,5),N70,0) -> 0 | Q70: =IF(N70<=SMALL(Graph1,5),N70,0) -> 108085 | R70: =N70*Skalierungsfaktor -> 140510.5
A71: =VLOOKUP(Bundesland&Daten_Auswahl!$B71,Daten_Matrix,2,FALSE) -> 631 | B71: 2023 | C71: 46666 | D71: 16804 | E71: 14763 | F71: 1364 | G71: 2981 | H71: 7195 | I71: 2802 | J71: 9822 | K71: 5869 | L71: 108266 | N71: =INDEX(INDIRECT(Graph1Title),ROW(A63)) -> 108266 | O71: =IF(SUM(P71:Q71)=0,N71,0) -> 108266 | P71: =IF(N71>=LARGE(Graph1,5),N71,0) -> 0 | Q71: =IF(N71<=SMALL(Graph1,5),N71,0) -> 0 | R71: =N71*Skalierungsfaktor -> 140745.8

Sheet Bev_15_20 (hidden)
A1: BDL(alpha)_Jahr | B1: Zeilenindex | C1: BDL | D1: Jahr | E1: SummevonBevoelkerung
A2: =C2&D2 -> 11952 | B2: 2 | C2: 1 | D2: 1952 | E2: 27430
A3: 11953 | B3: 3 | C3: 1 | D3: 1953 | E3: 26587
A4: 11954 | B4: 4 | C4: 1 | D4: 1954 | E4: 26406
A5: 11955 | B5: 5 | C5: 1 | D5: 1955 | E5: 26917
A6: 11956 | B6: 6 | C6: 1 | D6: 1956 | E6: 26929
A7: 11957 | B7: 7 | C7: 1 | D7: 1957 | E7: 26148
A8: 11958 | B8: 8 | C8: 1 | D8: 1958 | E8: 25183
A9: 11959 | B9: 9 | C9: 1 | D9: 1959 | E9: 24395
A10: 11960 | B10: 10 | C10: 1 | D10: 1960 | E10: 22686
A11: 11961 | B11: 11 | C11: 1 | D11: 1961 | E11: 20176
A12: 11962 | B12: 12 | C12: 1 | D12: 1962 | E12: 18954
A13: 11963 | B13: 13 | C13: 1 | D13: 1963 | E13: 19516
A14: 11964 | B14: 14 | C14: 1 | D14: 1964 | E14: 20692
A15: 11965 | B15: 15 | C15: 1 | D15: 1965 | E15: 21858
A16: 11966 | B16: 16 | C16: 1 | D16: 1966 | E16: 23418
A17: 11967 | B17: 17 | C17: 1 | D17: 1967 | E17: 25108
A18: 11968 | B18: 18 | C18: 1 | D18: 1968 | E18: 25939
A19: 11969 | B19: 19 | C19: 1 | D19: 1969 | E19: 26012
A20: 11970 | B20: 20 | C20: 1 | D20: 1970 | E20: 26091
A21: 11971 | B21: 21 | C21: 1 | D21: 1971 | E21: 26325
A22: 11972 | B22: 22 | C22: 1 | D22: 1972 | E22: 26597
A23: 11973 | B23: 23 | C23: 1 | D23: 1973 | E23: 26850
A24: 11974 | B24: 24 | C24: 1 | D24: 1974 | E24: 27220
A25: 11975 | B25: 25 | C25: 1 | D25: 1975 | E25: 27646
A26: 11976 | B26: 26 | C26: 1 | D26: 1976 | E26: 27954
A27: 11977 | B27: 27 | C27: 1 | D27: 1977 | E27: 28255
A28: 11978 | B28: 28 | C28: 1 | D28: 1978 | E28: 28518
A29: 11979 | B29: 29 | C29: 1 | D29: 1979 | E29: 28650
A30: 11980 | B30: 30 | C30: 1 | D30: 1980 | E30: 28365
A31: 11981 | B31: 31 | C31: 1 | D31: 1981 | E31: 27934
A32: 11982 | B32: 32 | C32: 1 | D32: 1982 | E32: 27661
A33: 11983 | B33: 33 | C33: 1 | D33: 1983 | E33: 27080
A34: 11984 | B34: 34 | C34: 1 | D34: 1984 | E34: 26189
A35: 11985 | B35: 35 | C35: 1 | D35: 1985 | E35: 25281
A36: 11986 | B36: 36 | C36: 1 | D36: 1986 | E36: 24644
A37: 11987 | B37: 37 | C37: 1 | D37: 1987 | E37: 24146
A38: 11988 | B38: 38 | C38: 1 | D38: 1988 | E38: 23620
A39: 11989 | B39: 39 | C39: 1 | D39: 1989 | E39: 23267
A40: 11990 | B40: 40 | C40: 1 | D40: 1990 | E40: 22967
A41: 11991 | B41: 41 | C41: 1 | D41: 1991 | E41: 22554
A42: 11992 | B42: 42 | C42: 1 | D42: 1992 | E42: 21907
A43: 11993 | B43: 43 | C43: 1 | D43: 1993 | E43: 21130
A44: 11994 | B44: 44 | C44: 1 | D44: 1994 | E44: 20492
A45: 11995 | B45: 45 | C45: 1 | D45: 1995 | E45: 20093
A46: 11996 | B46: 46 | C46: 1 | D46: 1996 | E46: 20021
A47: 11997 | B47: 47 | C47: 1 | D47: 1997 | E47: 20128
A48: 11998 | B48: 48 | C48: 1 | D48: 1998 | E48: 20222
A49: 11999 | B49: 49 | C49: 1 | D49: 1999 | E49: 20341
A50: 12000 | B50: 50 | C50: 1 | D50: 2000 | E50: 20394
A51: 12001 | B51: 51 | C51: 1 | D51: 2001 | E51: 20211
A52: 12002 | B52: 52 | C52: 1 | D52: 2002 | E52: 19809
A53: 12003 | B53: 53 | C53: 1 | D53: 2003 | E53: 19481
A54: 12004 | B54: 54 | C54: 1 | D54: 2004 | E54: 19334
A55: 12005 | B55: 55 | C55: 1 | D55: 2005 | E55: 19239
A56: =C56&D56 -> 12006 | B56: 56 | C56: 1 | D56: 2006 | E56: 19073
A57: 12007 | B57: 57 | C57: 1 | D57: 2007 | E57: 18920
A58: 12008 | B58: 58 | C58: 1 | D58: 2008 | E58: 18891
A59: 12009 | B59: 59 | C59: 1 | D59: 2009 | E59: 18907
A60: 12010 | B60: 60 | C60: 1 | D60: 2010 | E60: 18655
A61: 12011 | B61: 61 | C61: 1 | D61: 2011 | E61: 18388
A62: 12012 | B62: 62 | C62: 1 | D62: 2012 | E62: 18119
A63: 12013 | B63: 63 | C63: 1 | D63: 2013 | E63: 17896
A64: 12014 | B64: 64 | C64: 1 | D64: 2014 | E64: 17601
A65: 12015 | B65: 65 | C65: 1 | D65: 2015 | E65: 17240
A66: 12016 | B66: 66 | C66: 1 | D66: 2016 | E66: 17198
A67: 12017 | B67: 67 | C67: 1 | D67: 2017 | E67: 16941
A68: 12018 | B68: 68 | C68: 1 | D68: 2018 | E68: 16622
A69: 12019 | B69: 69 | C69: 1 | D69: 2019 | E69: 16403
A70: 12020 | B70: 70 | C70: 1 | D70: 2020 | E70: 16272
A71: 12021 | B71: 71 | C71: 1 | D71: 2021 | E71: 16274
A72: 12022 | B72: 72 | C72: 1 | D72: 2022 | E72: 16570
A73: 12023 | B73: 73 | C73: 1 | D73: 2023 | E73: 16705
A74: 21952 | B74: 74 | C74: 2 | D74: 1952 | E74: 40092
A75: 21953 | B75: 75 | C75: 2 | D75: 1953 | E75: 39143
A76: 21954 | B76: 76 | C76: 2 | D76: 1954 | E76: 40159
A77: 21955 | B77: 77 | C77: 2 | D77: 1955 | E77: 42925
A78: 21956 | B78: 78 | C78: 2 | D78: 1956 | E78: 45520
A79: 21957 | B79: 79 | C79: 2 | D79: 1957 | E79: 47675
A80: 21958 | B80: 80 | C80: 2 | D80: 1958 | E80: 49381
A81: 21959 | B81: 81 | C81: 2 | D81: 1959 | E81: 50607
A82: 21960 | B82: 82 | C82: 2 | D82: 1960 | E82: 49997
A83: 21961 | B83: 83 | C83: 2 | D83: 1961 | E83: 47974
A84: 21962 | B84: 84 | C84: 2 | D84: 1962 | E84: 46743
A85: 21963 | B85: 85 | C85: 2 | D85: 1963 | E85: 46391
A86: 21964 | B86: 86 | C86: 2 | D86: 1964 | E86: 46567
A87: 21965 | B87: 87 | C87: 2 | D87: 1965 | E87: 46814
A88: 21966 | B88: 88 | C88: 2 | D88: 1966 | E88: 48079
A89: 21967 | B89: 89 | C89: 2 | D89: 1967 | E89: 49275
A90: 21968 | B90: 90 | C90: 2 | D90: 1968 | E90: 49249
A91: 21969 | B91: 91 | C91: 2 | D91: 1969 | E91: 49444
A92: 21970 | B92: 92 | C92: 2 | D92: 1970 | E92: 50428
A93: 21971 | B93: 93 | C93: 2 | D93: 1971 | E93: 51973
A94: 21972 | B94: 94 | C94: 2 | D94: 1972 | E94: 53761
A95: 21973 | B95: 95 | C95: 2 | D95: 1973 | E95: 55234
A96: 21974 | B96: 96 | C96: 2 | D96: 1974 | E96: 56212
A97: 21975 | B97: 97 | C97: 2 | D97: 1975 | E97: 57020
A98: 21976 | B98: 98 | C98: 2 | D98: 1976 | E98: 57984
A99: 21977 | B99: 99 | C99: 2 | D99: 1977 | E99: 58858
A100: 21978 | B100: 100 | C100: 2 | D100: 1978 | E100: 59413
A101: 21979 | B101: 101 | C101: 2 | D101: 1979 | E101: 59934
A102: 21980 | B102: 102 | C102: 2 | D102: 1980 | E102: 60283
A103: 21981 | B103: 103 | C103: 2 | D103: 1981 | E103: 60118
A104: 21982 | B104: 104 | C104: 2 | D104: 1982 | E104: 59608
A105: 21983 | B105: 105 | C105: 2 | D105: 1983 | E105: 58939
A106: 21984 | B106: 106 | C106: 2 | D106: 1984 | E106: 58011
A107: 21985 | B107: 107 | C107: 2 | D107: 1985 | E107: 56521
A108: 21986 | B108: 108 | C108: 2 | D108: 1986 | E108: 54715
A109: 21987 | B109: 109 | C109: 2 | D109: 1987 | E109: 53050
A110: =C110&D110 -> 21988 | B110: 110 | C110: 2 | D110: 1988 | E110: 51162
A111: 21989 | B111: 111 | C111: 2 | D111: 1989 | E111: 49090
A112: 21990 | B112: 112 | C112: 2 | D112: 1990 | E112: 47039
A113: 21991 | B113: 113 | C113: 2 | D113: 1991 | E113: 45271
A114: 21992 | B114: 114 | C114: 2 | D114: 1992 | E114: 43974
A115: 21993 | B115: 115 | C115: 2 | D115: 1993 | E115: 42664
A116: 21994 | B116: 116 | C116: 2 | D116: 1994 | E116: 41527
A117: 21995 | B117: 117 | C117: 2 | D117: 1995 | E117: 41111
A118: 21996 | B118: 118 | C118: 2 | D118: 1996 | E118: 41145
A119: 21997 | B119: 119 | C119: 2 | D119: 1997 | E119: 41389
A120: 21998 | B120: 120 | C120: 2 | D120: 1998 | E120: 41843
A121: 21999 | B121: 121 | C121: 2 | D121: 1999 | E121: 42243
A122: 22000 | B122: 122 | C122: 2 | D122: 2000 | E122: 42501
A123: 22001 | B123: 123 | C123: 2 | D123: 2001 | E123: 42428
A124: 22002 | B124: 124 | C124: 2 | D124: 2002 | E124: 41898
A125: 22003 | B125: 125 | C125: 2 | D125: 2003 | E125: 41312
A126: 22004 | B126: 126 | C126: 2 | D126: 2004 | E126: 40849
A127: 22005 | B127: 127 | C127: 2 | D127: 2005 | E127: 40728
A128: 22006 | B128: 128 | C128: 2 | D128: 2006 | E128: 40663
A129: 22007 | B129: 129 | C129: 2 | D129: 2007 | E129: 40680
A130: 22008 | B130: 130 | C130: 2 | D130: 2008 | E130: 40725
A131: 22009 | B131: 131 | C131: 2 | D131: 2009 | E131: 40491
A132: 22010 | B132: 132 | C132: 2 | D132: 2010 | E132: 39955
A133: 22011 | B133: 133 | C133: 2 | D133: 2011 | E133: 39375
A134: 22012 | B134: 134 | C134: 2 | D134: 2012 | E134: 38449
A135: 22013 | B135: 135 | C135: 2 | D135: 2013 | E135: 37289
A136: 22014 | B136: 136 | C136: 2 | D136: 2014 | E136: 36273
A137: 22015 | B137: 137 | C137: 2 | D137: 2015 | E137: 35477
A138: 22016 | B138: 138 | C138: 2 | D138: 2016 | E138: 34842
A139: 22017 | B139: 139 | C139: 2 | D139: 2017 | E139: 33807
A140: 22018 | B140: 140 | C140: 2 | D140: 2018 | E140: 32948
A141: 22019 | B141: 141 | C141: 2 | D141: 2019 | E141: 32423
A142: 22020 | B142: 142 | C142: 2 | D142: 2020 | E142: 32123
A143: 22021 | B143: 143 | C143: 2 | D143: 2021 | E143: 32086
A144: 22022 | B144: 144 | C144: 2 | D144: 2022 | E144: 32394
A145: 22023 | B145: 145 | C145: 2 | D145: 2023 | E145: 32424
A146: 31952 | B146: 146 | C146: 3 | D146: 1952 | E146: 112653
A147: 31953 | B147: 147 | C147: 3 | D147: 1953 | E147: 111631
A148: 31954 | B148: 148 | C148: 3 | D148: 1954 | E148: 115279
A149: 31955 | B149: 149 | C149: 3 | D149: 1955 | E149: 122467
A150: 31956 | B150: 150 | C150: 3 | D150: 1956 | E150: 127985
A151: 31957 | B151: 151 | C151: 3 | D151: 1957 | E151: 130299
A152: 31958 | B152: 152 | C152: 3 | D152: 1958 | E152: 131173
A153: 31959 | B153: 153 | C153: 3 | D153: 1959 | E153: 131648
A154: 31960 | B154: 154 | C154: 3 | D154: 1960 | E154: 125505
A155: 31961 | B155: 155 | C155: 3 | D155: 1961 | E155: 114034
A156: 31962 | B156: 156 | C156: 3 | D156: 1962 | E156: 107615
A157: 31963 | B157: 157 | C157: 3 | D157: 1963 | E157: 107511
A158: 31964 | B158: 158 | C158: 3 | D158: 1964 | E158: 108616
A159: 31965 | B159: 159 | C159: 3 | D159: 1965 | E159: 108974
A160: 31966 | B160: 160 | C160: 3 | D160: 1966 | E160: 111598
A161: 31967 | B161: 161 | C161: 3 | D161: 1967 | E161: 116140
A162: 31968 | B162: 162 | C162: 3 | D162: 1968 | E162: 117404
A163: 31969 | B163: 163 | C163: 3 | D163: 1969 | E163: 116365
A164: 31970 | B164: 164 | C164: 3 | D164: 1970 | E164: 117344
A165: 31971 | B165: 165 | C165: 3 | D165: 1971 | E165: 119989
A166: =C166&D166 -> 31972 | B166: 166 | C166: 3 | D166: 1972 | E166: 123050
A167: 31973 | B167: 167 | C167: 3 | D167: 1973 | E167: 126086
A168: 31974 | B168: 168 | C168: 3 | D168: 1974 | E168: 128605
A169: 31975 | B169: 169 | C169: 3 | D169: 1975 | E169: 131258
A170: 31976 | B170: 170 | C170: 3 | D170: 1976 | E170: 135197
A171: 31977 | B171: 171 | C171: 3 | D171: 1977 | E171: 139537
A172: 31978 | B172: 172 | C172: 3 | D172: 1978 | E172: 143053
A173: 31979 | B173: 173 | C173: 3 | D173: 1979 | E173: 146295
A174: 31980 | B174: 174 | C174: 3 | D174: 1980 | E174: 148964
A175: 31981 | B175: 175 | C175: 3 | D175: 1981 | E175: 150779
A176: 31982 | B176: 176 | C176: 3 | D176: 1982 | E176: 150481
A177: 31983 | B177: 177 | C177: 3 | D177: 1983 | E177: 148039
A178: 31984 | B178: 178 | C178: 3 | D178: 1984 | E178: 145046
A179: 31985 | B179: 179 | C179: 3 | D179: 1985 | E179: 141240
A180: 31986 | B180: 180 | C180: 3 | D180: 1986 | E180: 137195
A181: 31987 | B181: 181 | C181: 3 | D181: 1987 | E181: 133015
A182: 31988 | B182: 182 | C182: 3 | D182: 1988 | E182: 128226
A183: 31989 | B183: 183 | C183: 3 | D183: 1989 | E183: 123989
A184: 31990 | B184: 184 | C184: 3 | D184: 1990 | E184: 120732
A185: 31991 | B185: 185 | C185: 3 | D185: 1991 | E185: 117391
A186: 31992 | B186: 186 | C186: 3 | D186: 1992 | E186: 114016
A187: 31993 | B187: 187 | C187: 3 | D187: 1993 | E187: 110520
A188: 31994 | B188: 188 | C188: 3 | D188: 1994 | E188: 107335
A189: 31995 | B189: 189 | C189: 3 | D189: 1995 | E189: 105460
A190: 31996 | B190: 190 | C190: 3 | D190: 1996 | E190: 104968
A191: 31997 | B191: 191 | C191: 3 | D191: 1997 | E191: 105781
A192: 31998 | B192: 192 | C192: 3 | D192: 1998 | E192: 107388
A193: 31999 | B193: 193 | C193: 3 | D193: 1999 | E193: 109322
A194: 32000 | B194: 194 | C194: 3 | D194: 2000 | E194: 110882
A195: 32001 | B195: 195 | C195: 3 | D195: 2001 | E195: 111413
A196: 32002 | B196: 196 | C196: 3 | D196: 2002 | E196: 111169
A197: 32003 | B197: 197 | C197: 3 | D197: 2003 | E197: 111148
A198: 32004 | B198: 198 | C198: 3 | D198: 2004 | E198: 111802
A199: 32005 | B199: 199 | C199: 3 | D199: 2005 | E199: 113043
A200: 32006 | B200: 200 | C200: 3 | D200: 2006 | E200: 114656
... 521 more rows

Sheet Bev_15_20_Auswahl (hidden)
A1: Zeilenindex | C1: Bev_15_20 | D1: Bevölkerungspunkte | E1: Max_Jahr | F1: =MAX(B:B) -> 2023 | G1: Beschriftung_Bevölkerungslinie
A2: =VLOOKUP(Bundesland&Bev_15_20_Auswahl!$B2,Bev_15_20_Matrix,2,FALSE) -> 659 | B2: 1961 | C2: =IF(Graph1Title="Insgesamt",IF(ISERROR($A2),0,IF(INDEX(Bev_15_20_Matrix,$A2,5)=0,".",INDEX(Bev_15_20_Matrix,$A2,5))),NA()) -> 640049 | D2: =IF(RIGHT(B2,1)="0",C2,IF(B2=Max_Jahr,C2,NA())) ->  | G2: =IF(Graph1Title="Insgesamt","Bevölkerung der Altersgruppe 15-20 Jahre","") -> Bevölkerung der Altersgruppe 15-20 Jahre
A3: =VLOOKUP(Bundesland&Bev_15_20_Auswahl!$B3,Bev_15_20_Matrix,2,FALSE) -> 660 | B3: 1962 | C3: 610962
A4: =VLOOKUP(Bundesland&Bev_15_20_Auswahl!$B4,Bev_15_20_Matrix,2,FALSE) -> 661 | B4: 1963 | C4: 602714
A5: =VLOOKUP(Bundesland&Bev_15_20_Auswahl!$B5,Bev_15_20_Matrix,2,FALSE) -> 662 | B5: 1964 | C5: 598991
A6: =VLOOKUP(Bundesland&Bev_15_20_Auswahl!$B6,Bev_15_20_Matrix,2,FALSE) -> 663 | B6: 1965 | C6: 592947
A7: =VLOOKUP(Bundesland&Bev_15_20_Auswahl!$B7,Bev_15_20_Matrix,2,FALSE) -> 664 | B7: 1966 | C7: 599612
A8: =VLOOKUP(Bundesland&Bev_15_20_Auswahl!$B8,Bev_15_20_Matrix,2,FALSE) -> 665 | B8: 1967 | C8: 611022
A9: =VLOOKUP(Bundesland&Bev_15_20_Auswahl!$B9,Bev_15_20_Matrix,2,FALSE) -> 666 | B9: 1968 | C9: 608736
A10: =VLOOKUP(Bundesland&Bev_15_20_Auswahl!$B10,Bev_15_20_Matrix,2,FALSE) -> 667 | B10: 1969 | C10: 602219
A11: =VLOOKUP(Bundesland&Bev_15_20_Auswahl!$B11,Bev_15_20_Matrix,2,FALSE) -> 668 | B11: 1970 | C11: 603625 | D11: 603625
A12: =VLOOKUP(Bundesland&Bev_15_20_Auswahl!$B12,Bev_15_20_Matrix,2,FALSE) -> 669 | B12: 1971 | C12: 614551
A13: =VLOOKUP(Bundesland&Bev_15_20_Auswahl!$B13,Bev_15_20_Matrix,2,FALSE) -> 670 | B13: 1972 | C13: 632283
A14: =VLOOKUP(Bundesland&Bev_15_20_Auswahl!$B14,Bev_15_20_Matrix,2,FALSE) -> 671 | B14: 1973 | C14: 652346
A15: =VLOOKUP(Bundesland&Bev_15_20_Auswahl!$B15,Bev_15_20_Matrix,2,FALSE) -> 672 | B15: 1974 | C15: 670477
A16: =VLOOKUP(Bundesland&Bev_15_20_Auswahl!$B16,Bev_15_20_Matrix,2,FALSE) -> 673 | B16: 1975 | C16: 688653
A17: =VLOOKUP(Bundesland&Bev_15_20_Auswahl!$B17,Bev_15_20_Matrix,2,FALSE) -> 674 | B17: 1976 | C17: 711523
A18: =VLOOKUP(Bundesland&Bev_15_20_Auswahl!$B18,Bev_15_20_Matrix,2,FALSE) -> 675 | B18: 1977 | C18: 734943
A19: =VLOOKUP(Bundesland&Bev_15_20_Auswahl!$B19,Bev_15_20_Matrix,2,FALSE) -> 676 | B19: 1978 | C19: 753282
A20: =VLOOKUP(Bundesland&Bev_15_20_Auswahl!$B20,Bev_15_20_Matrix,2,FALSE) -> 677 | B20: 1979 | C20: 769221
A21: =VLOOKUP(Bundesland&Bev_15_20_Auswahl!$B21,Bev_15_20_Matrix,2,FALSE) -> 678 | B21: 1980 | C21: 781590 | D21: 781590
A22: =VLOOKUP(Bundesland&Bev_15_20_Auswahl!$B22,Bev_15_20_Matrix,2,FALSE) -> 679 | B22: 1981 | C22: 789740
A23: =VLOOKUP(Bundesland&Bev_15_20_Auswahl!$B23,Bev_15_20_Matrix,2,FALSE) -> 680 | B23: 1982 | C23: 789886
A24: =VLOOKUP(Bundesland&Bev_15_20_Auswahl!$B24,Bev_15_20_Matrix,2,FALSE) -> 681 | B24: 1983 | C24: 783204
A25: =VLOOKUP(Bundesland&Bev_15_20_Auswahl!$B25,Bev_15_20_Matrix,2,FALSE) -> 682 | B25: 1984 | C25: 773598
A26: =VLOOKUP(Bundesland&Bev_15_20_Auswahl!$B26,Bev_15_20_Matrix,2,FALSE) -> 683 | B26: 1985 | C26: 757293
A27: =VLOOKUP(Bundesland&Bev_15_20_Auswahl!$B27,Bev_15_20_Matrix,2,FALSE) -> 684 | B27: 1986 | C27: =IF(Graph1Title="Insgesamt",IF(ISERROR($A27),0,IF(INDEX(Bev_15_20_Matrix,$A27,5)=0,".",INDEX(Bev_15_20_Matrix,$A27,5))),NA()) -> 737187 | D27: =IF(RIGHT(B27,1)="0",C27,IF(B27=Max_Jahr,C27,NA())) -> 
A28: =VLOOKUP(Bundesland&Bev_15_20_Auswahl!$B28,Bev_15_20_Matrix,2,FALSE) -> 685 | B28: 1987 | C28: 713404
A29: =VLOOKUP(Bundesland&Bev_15_20_Auswahl!$B29,Bev_15_20_Matrix,2,FALSE) -> 686 | B29: 1988 | C29: 684945
A30: =VLOOKUP(Bundesland&Bev_15_20_Auswahl!$B30,Bev_15_20_Matrix,2,FALSE) -> 687 | B30: 1989 | C30: 657474
A31: =VLOOKUP(Bundesland&Bev_15_20_Auswahl!$B31,Bev_15_20_Matrix,2,FALSE) -> 688 | B31: 1990 | C31: 633747 | D31: 633747
A32: =VLOOKUP(Bundesland&Bev_15_20_Auswahl!$B32,Bev_15_20_Matrix,2,FALSE) -> 689 | B32: 1991 | C32: 613287
A33: =VLOOKUP(Bundesland&Bev_15_20_Auswahl!$B33,Bev_15_20_Matrix,2,FALSE) -> 690 | B33: 1992 | C33: 595823
A34: =VLOOKUP(Bundesland&Bev_15_20_Auswahl!$B34,Bev_15_20_Matrix,2,FALSE) -> 691 | B34: 1993 | C34: 579081
A35: =VLOOKUP(Bundesland&Bev_15_20_Auswahl!$B35,Bev_15_20_Matrix,2,FALSE) -> 692 | B35: 1994 | C35: 564953
A36: =VLOOKUP(Bundesland&Bev_15_20_Auswahl!$B36,Bev_15_20_Matrix,2,FALSE) -> 693 | B36: 1995 | C36: 557133
A37: =VLOOKUP(Bundesland&Bev_15_20_Auswahl!$B37,Bev_15_20_Matrix,2,FALSE) -> 694 | B37: 1996 | C37: 555618
A38: =VLOOKUP(Bundesland&Bev_15_20_Auswahl!$B38,Bev_15_20_Matrix,2,FALSE) -> 695 | B38: 1997 | C38: 559876
A39: =VLOOKUP(Bundesland&Bev_15_20_Auswahl!$B39,Bev_15_20_Matrix,2,FALSE) -> 696 | B39: 1998 | C39: 566692
A40: =VLOOKUP(Bundesland&Bev_15_20_Auswahl!$B40,Bev_15_20_Matrix,2,FALSE) -> 697 | B40: 1999 | C40: 573778
A41: =VLOOKUP(Bundesland&Bev_15_20_Auswahl!$B41,Bev_15_20_Matrix,2,FALSE) -> 698 | B41: 2000 | C41: 579865 | D41: 579865
A42: =VLOOKUP(Bundesland&Bev_15_20_Auswahl!$B42,Bev_15_20_Matrix,2,FALSE) -> 699 | B42: 2001 | C42: 582577
A43: =VLOOKUP(Bundesland&Bev_15_20_Auswahl!$B43,Bev_15_20_Matrix,2,FALSE) -> 700 | B43: 2002 | C43: 582323
A44: =VLOOKUP(Bundesland&Bev_15_20_Auswahl!$B44,Bev_15_20_Matrix,2,FALSE) -> 701 | B44: 2003 | C44: 582622
A45: =VLOOKUP(Bundesland&Bev_15_20_Auswahl!$B45,Bev_15_20_Matrix,2,FALSE) -> 702 | B45: 2004 | C45: 585431
A46: =VLOOKUP(Bundesland&Bev_15_20_Auswahl!$B46,Bev_15_20_Matrix,2,FALSE) -> 703 | B46: 2005 | C46: 589082
A47: =VLOOKUP(Bundesland&Bev_15_20_Auswahl!$B47,Bev_15_20_Matrix,2,FALSE) -> 704 | B47: 2006 | C47: 592736
A48: =VLOOKUP(Bundesland&Bev_15_20_Auswahl!$B48,Bev_15_20_Matrix,2,FALSE) -> 705 | B48: 2007 | C48: 597484
A49: =VLOOKUP(Bundesland&Bev_15_20_Auswahl!$B49,Bev_15_20_Matrix,2,FALSE) -> 706 | B49: 2008 | C49: 602129
A50: =VLOOKUP(Bundesland&Bev_15_20_Auswahl!$B50,Bev_15_20_Matrix,2,FALSE) -> 707 | B50: 2009 | C50: 603465
A51: =VLOOKUP(Bundesland&Bev_15_20_Auswahl!$B51,Bev_15_20_Matrix,2,FALSE) -> 708 | B51: 2010 | C51: 600243 | D51: 600243
A52: =VLOOKUP(Bundesland&Bev_15_20_Auswahl!$B52,Bev_15_20_Matrix,2,FALSE) -> 709 | B52: 2011 | C52: 595488
A53: =VLOOKUP(Bundesland&Bev_15_20_Auswahl!$B53,Bev_15_20_Matrix,2,FALSE) -> 710 | B53: 2012 | C53: 589728
A54: =VLOOKUP(Bundesland&Bev_15_20_Auswahl!$B54,Bev_15_20_Matrix,2,FALSE) -> 711 | B54: 2013 | C54: 579996
A55: =VLOOKUP(Bundesland&Bev_15_20_Auswahl!$B55,Bev_15_20_Matrix,2,FALSE) -> 712 | B55: 2014 | C55: 568742
A56: =VLOOKUP(Bundesland&Bev_15_20_Auswahl!$B56,Bev_15_20_Matrix,2,FALSE) -> 713 | B56: 2015 | C56: 562527
A57: =VLOOKUP(Bundesland&Bev_15_20_Auswahl!$B57,Bev_15_20_Matrix,2,FALSE) -> 714 | B57: 2016 | C57: 562931 | D57: =IF(RIGHT(B57,1)="0",C57,IF(B57=Max_Jahr,C57,NA())) -> 
A58: =VLOOKUP(Bundesland&Bev_15_20_Auswahl!$B58,Bev_15_20_Matrix,2,FALSE) -> 715 | B58: 2017 | C58: 552541
A59: =VLOOKUP(Bundesland&Bev_15_20_Auswahl!$B59,Bev_15_20_Matrix,2,FALSE) -> 716 | B59: 2018 | C59: 540784 | D59: =IF(RIGHT(B59,1)="0",C59,IF(B59=Max_Jahr,C59,NA())) -> 
A60: =VLOOKUP(Bundesland&Bev_15_20_Auswahl!$B60,Bev_15_20_Matrix,2,FALSE) -> 717 | B60: 2019 | C60: 533268 | D60: =IF(RIGHT(B60,1)="0",C60,IF(B60=Max_Jahr,C60,NA())) -> 
A61: =VLOOKUP(Bundesland&Bev_15_20_Auswahl!$B61,Bev_15_20_Matrix,2,FALSE) -> 718 | B61: 2020 | C61: 529701 | D61: =IF(RIGHT(B61,1)="0",C61,IF(B61=Max_Jahr,C61,NA())) -> 529701
A62: =VLOOKUP(Bundesland&Bev_15_20_Auswahl!$B62,Bev_15_20_Matrix,2,FALSE) -> 719 | B62: 2021 | C62: 527954 | D62: =IF(RIGHT(B62,1)="0",C62,IF(B62=Max_Jahr,C62,NA())) -> 
A63: =VLOOKUP(Bundesland&Bev_15_20_Auswahl!$B63,Bev_15_20_Matrix,2,FALSE) -> 720 | B63: 2022 | C63: 536461 | D63: =IF(RIGHT(B63,1)="0",C63,IF(B63=Max_Jahr,C63,NA())) -> 
A64: =VLOOKUP(Bundesland&Bev_15_20_Auswahl!$B64,Bev_15_20_Matrix,2,FALSE) -> 721 | B64: 2023 | C64: 541590 | D64: 541590

Sheet Wappen (hidden)
B1: Burgenland | C1: 1 | D1: =Auswahl_Bundesland -> ÖSTERREICH | E1: =LOOKUP(D1,B1:B10,C1:C10) -> 5 | H1: =INDIRECT("$A$"&E1) -> 0
B2: Kärnten | C2: 2
B3: Niederösterreich | C3: 3
B4: Oberösterreich | C4: 4
B5: Österreich | C5: 5
B6: Salzburg | C6: 6
B7: Steiermark | C7: 7
B8: Tirol | C8: 8
B9: Vorarlberg | C9: 9
B10: Wien | C10: 10

Sheet Stage (hidden)
B2: Scrollbar | C2: 56
B3: OptionButtons | C3: 1 | D3: =IF(OptionButton=1,0,11) -> 0
B4: OnClick | D4: =SUBSTITUTE(SUBSTITUTE(OnClick," 2",)," ",) -> 
B6: Dropdown-Bundesland
E7: Auswahl | F7: Auswahl_Bundesland | I7: Beschriftung der Bevölkerungsentwicklung der 15-20-Jährigen
B8: 1 | C8: BURGENLAND | E8: 10 | F8: =LOOKUP(E8,B8:C17) -> ÖSTERREICH | I8: =IF(Graph1Title="Insgesamt","Bevölkerung der Altersgruppe 15-20 Jahre","") -> Bevölkerung der Altersgruppe 15-20 Jahre
B9: 2 | C9: KÄRNTEN | I9: =IF(Graph1Title="Insgesamt","Bevölkerung der Altersgruppe 15-20 Jahre zum Jahr","") -> Bevölkerung der Altersgruppe 15-20 Jahre zum Jahr
B10: 3 | C10: NIEDERÖSTERREICH
B11: 4 | C11: OBERÖSTERREICH
B12: 5 | C12: SALZBURG
B13: 6 | C13: STEIERMARK
B14: 7 | C14: TIROL
B15: 8 | C15: VORARLBERG
B16: 9 | C16: WIEN
B17: 10 | C17: ÖSTERREICH
B19: 1961 | C19: 1 | D19: Maximalwert | E19: =MAX(C19:C1000) -> 63
B20: 1962 | C20: 2
B21: 1963 | C21: 3
B22: 1964 | C22: 4
B23: 1965 | C23: 5
B24: 1966 | C24: 6
B25: 1967 | C25: 7
B26: 1968 | C26: 8
B27: 1969 | C27: 9
B28: 1970 | C28: 10
B29: 1971 | C29: 11
B30: 1972 | C30: 12
B31: 1973 | C31: 13
B32: 1974 | C32: 14
B33: 1975 | C33: 15
B34: 1976 | C34: 16
B35: 1977 | C35: 17
B36: 1978 | C36: 18
B37: 1979 | C37: 19
B38: 1980 | C38: 20
B39: 1981 | C39: 21
B40: 1982 | C40: 22
B41: 1983 | C41: 23
B42: 1984 | C42: 24
B43: 1985 | C43: 25
B44: 1986 | C44: 26
B45: 1987 | C45: 27
B46: 1988 | C46: 28
B47: 1989 | C47: 29
B48: 1990 | C48: 30
B49: 1991 | C49: 31
B50: 1992 | C50: 32
B51: 1993 | C51: 33
B52: 1994 | C52: 34
B53: 1995 | C53: 35
B54: 1996 | C54: 36
B55: 1997 | C55: 37
B56: 1998 | C56: 38
B57: 1999 | C57: 39
B58: 2000 | C58: 40
B59: 2001 | C59: 41
B60: 2002 | C60: 42
B61: 2003 | C61: 43
B62: 2004 | C62: 44
B63: 2005 | C63: 45
B64: 2006 | C64: 46
B65: 2007 | C65: 47
B66: 2008 | C66: 48
B67: 2009 | C67: 49
B68: 2010 | C68: 50
B69: 2011 | C69: 51
B70: 2012 | C70: 52
B71: 2013 | C71: 53
B72: 2014 | C72: 54
B73: 2015 | C73: 55
B74: 2016 | C74: 56
B75: 2017 | C75: 57
B76: 2018 | C76: 58
B77: 2019 | C77: 59
B78: 2020 | C78: 60
B79: 2021 | C79: 61
B80: 2022 | C80: 62
B81: 2023 | C81: 63
